{"text_format":"3","workbook":"xlsx","n_sheets":12,"sheets":["يناير","فبراير","مارس","أبريل","مايو","يونيو","يوليو","أغسطس","سبتمبر","أكتوبر","نوفمبر","ديسمبر"],"not_rendered":{"defined_names":40},"read":"whole","date_system":"1900"}

{"sheet":"يناير","index":0,"n_rows":20,"n_cols":9,"rows_kept":20,"merged":[[16,2,17,2],[16,3,17,3],[17,4,19,8]]}
[null,"يناير","الأحد",{"$f":"UPPER(TEXT(D3,\"aaa\"))","v":"الإثنين"},"الثلاثاء","الأربعاء","الخميس","الجمعة","السبت"]
[null,{"$f":"YEAR(TODAY())","v":2018}]
[null,null,{"$f":"DaysAndWeeks+DATE(CalendarYear,1,1)-WEEKDAY(DATE(CalendarYear,1,1),(WeekStart=\"الإثنين\")+1)+1","v":"2017-12-31"},"2018-01-01","2018-01-02","2018-01-03","2018-01-04","2018-01-05","2018-01-06"]
[null,null,{"$f":"IF(DAY(CalendarDay)=1,CONCATENATE(\"أسبوع \",WEEKNUM(CalendarDay),\"/يوم \",CalendarDay-DATE(YEAR(CalendarDay),1,0)),CONCATENATE(\"يوم \",CalendarDay-DATE(YEAR(CalendarDay),1,0)))","v":"يوم 365"},"أسبوع 1/يوم 1","يوم 2","يوم 3","يوم 4","يوم 5","يوم 6"]
[]
[null,null,{"$f":"DaysAndWeeks+DATE(CalendarYear,1,1)-WEEKDAY(DATE(CalendarYear,1,1),(WeekStart=\"الإثنين\")+1)+8","v":"2018-01-07"},"2018-01-08","2018-01-09","2018-01-10","2018-01-11","2018-01-12","2018-01-13"]
[null,null,{"$f":"IF(WEEKDAY(CalendarDay)=WeekStartValue,CONCATENATE(\"أسبوع \",WEEKNUM(CalendarDay),\"/يوم \",CalendarDay-DATE(YEAR(CalendarDay),1,0)),CONCATENATE(\"يوم \",CalendarDay-DATE(YEAR(CalendarDay),1,0)))","v":"أسبوع 2/يوم 7"},{"$f":"IF(WEEKDAY(CalendarDay)=WeekStartValue,CONCATENATE(\"أسبوع \",WEEKNUM(CalendarDay),\"/يوم \",CalendarDay-DATE(YEAR(CalendarDay),1,0)),CONCATENATE(\"يوم \",CalendarDay-DATE(YEAR(CalendarDay),1,0)))","v":"يوم 8"},{"$f":"IF(WEEKDAY(CalendarDay)=WeekStartValue,CONCATENATE(\"أسبوع \",WEEKNUM(CalendarDay),\"/يوم \",CalendarDay-DATE(YEAR(CalendarDay),1,0)),CONCATENATE(\"يوم \",CalendarDay-DATE(YEAR(CalendarDay),1,0)))","v":"يوم 9"},{"$f":"IF(WEEKDAY(CalendarDay)=WeekStartValue,CONCATENATE(\"أسبوع \",WEEKNUM(CalendarDay),\"/يوم \",CalendarDay-DATE(YEAR(CalendarDay),1,0)),CONCATENATE(\"يوم \",CalendarDay-DATE(YEAR(CalendarDay),1,0)))","v":"يوم 10"},{"$f":"IF(WEEKDAY(CalendarDay)=WeekStartValue,CONCATENATE(\"أسبوع \",WEEKNUM(CalendarDay),\"/يوم \",CalendarDay-DATE(YEAR(CalendarDay),1,0)),CONCATENATE(\"يوم \",CalendarDay-DATE(YEAR(CalendarDay),1,0)))","v":"يوم 11"},{"$f":"IF(WEEKDAY(CalendarDay)=WeekStartValue,CONCATENATE(\"أسبوع \",WEEKNUM(CalendarDay),\"/يوم \",CalendarDay-DATE(YEAR(CalendarDay),1,0)),CONCATENATE(\"يوم \",CalendarDay-DATE(YEAR(CalendarDay),1,0)))","v":"يوم 12"},{"$f":"IF(WEEKDAY(CalendarDay)=WeekStartValue,CONCATENATE(\"أسبوع \",WEEKNUM(CalendarDay),\"/يوم \",CalendarDay-DATE(YEAR(CalendarDay),1,0)),CONCATENATE(\"يوم \",CalendarDay-DATE(YEAR(CalendarDay),1,0)))","v":"يوم 13"}]
[]
[null,null,{"$f":"DaysAndWeeks+DATE(CalendarYear,1,1)-WEEKDAY(DATE(CalendarYear,1,1),(WeekStart=\"الإثنين\")+1)+15","v":"2018-01-14"},"2018-01-15","2018-01-16","2018-01-17","2018-01-18","2018-01-19","2018-01-20"]
[null,null,{"$f":"IF(WEEKDAY(CalendarDay)=WeekStartValue,CONCATENATE(\"أسبوع \",WEEKNUM(CalendarDay),\"/يوم \",CalendarDay-DATE(YEAR(CalendarDay),1,0)),CONCATENATE(\"يوم \",CalendarDay-DATE(YEAR(CalendarDay),1,0)))","v":"أسبوع 3/يوم 14"},{"$f":"IF(WEEKDAY(CalendarDay)=WeekStartValue,CONCATENATE(\"أسبوع \",WEEKNUM(CalendarDay),\"/يوم \",CalendarDay-DATE(YEAR(CalendarDay),1,0)),CONCATENATE(\"يوم \",CalendarDay-DATE(YEAR(CalendarDay),1,0)))","v":"يوم 15"},{"$f":"IF(WEEKDAY(CalendarDay)=WeekStartValue,CONCATENATE(\"أسبوع \",WEEKNUM(CalendarDay),\"/يوم \",CalendarDay-DATE(YEAR(CalendarDay),1,0)),CONCATENATE(\"يوم \",CalendarDay-DATE(YEAR(CalendarDay),1,0)))","v":"يوم 16"},{"$f":"IF(WEEKDAY(CalendarDay)=WeekStartValue,CONCATENATE(\"أسبوع \",WEEKNUM(CalendarDay),\"/يوم \",CalendarDay-DATE(YEAR(CalendarDay),1,0)),CONCATENATE(\"يوم \",CalendarDay-DATE(YEAR(CalendarDay),1,0)))","v":"يوم 17"},{"$f":"IF(WEEKDAY(CalendarDay)=WeekStartValue,CONCATENATE(\"أسبوع \",WEEKNUM(CalendarDay),\"/يوم \",CalendarDay-DATE(YEAR(CalendarDay),1,0)),CONCATENATE(\"يوم \",CalendarDay-DATE(YEAR(CalendarDay),1,0)))","v":"يوم 18"},{"$f":"IF(WEEKDAY(CalendarDay)=WeekStartValue,CONCATENATE(\"أسبوع \",WEEKNUM(CalendarDay),\"/يوم \",CalendarDay-DATE(YEAR(CalendarDay),1,0)),CONCATENATE(\"يوم \",CalendarDay-DATE(YEAR(CalendarDay),1,0)))","v":"يوم 19"},{"$f":"IF(WEEKDAY(CalendarDay)=WeekStartValue,CONCATENATE(\"أسبوع \",WEEKNUM(CalendarDay),\"/يوم \",CalendarDay-DATE(YEAR(CalendarDay),1,0)),CONCATENATE(\"يوم \",CalendarDay-DATE(YEAR(CalendarDay),1,0)))","v":"يوم 20"}]
[]
[null,null,{"$f":"DaysAndWeeks+DATE(CalendarYear,1,1)-WEEKDAY(DATE(CalendarYear,1,1),(WeekStart=\"الإثنين\")+1)+22","v":"2018-01-21"},"2018-01-22","2018-01-23","2018-01-24","2018-01-25","2018-01-26","2018-01-27"]
[null,null,{"$f":"IF(WEEKDAY(CalendarDay)=WeekStartValue,CONCATENATE(\"أسبوع \",WEEKNUM(CalendarDay),\"/يوم \",CalendarDay-DATE(YEAR(CalendarDay),1,0)),CONCATENATE(\"يوم \",CalendarDay-DATE(YEAR(CalendarDay),1,0)))","v":"أسبوع 4/يوم 21"},{"$f":"IF(WEEKDAY(CalendarDay)=WeekStartValue,CONCATENATE(\"أسبوع \",WEEKNUM(CalendarDay),\"/يوم \",CalendarDay-DATE(YEAR(CalendarDay),1,0)),CONCATENATE(\"يوم \",CalendarDay-DATE(YEAR(CalendarDay),1,0)))","v":"يوم 22"},{"$f":"IF(WEEKDAY(CalendarDay)=WeekStartValue,CONCATENATE(\"أسبوع \",WEEKNUM(CalendarDay),\"/يوم \",CalendarDay-DATE(YEAR(CalendarDay),1,0)),CONCATENATE(\"يوم \",CalendarDay-DATE(YEAR(CalendarDay),1,0)))","v":"يوم 23"},{"$f":"IF(WEEKDAY(CalendarDay)=WeekStartValue,CONCATENATE(\"أسبوع \",WEEKNUM(CalendarDay),\"/يوم \",CalendarDay-DATE(YEAR(CalendarDay),1,0)),CONCATENATE(\"يوم \",CalendarDay-DATE(YEAR(CalendarDay),1,0)))","v":"يوم 24"},{"$f":"IF(WEEKDAY(CalendarDay)=WeekStartValue,CONCATENATE(\"أسبوع \",WEEKNUM(CalendarDay),\"/يوم \",CalendarDay-DATE(YEAR(CalendarDay),1,0)),CONCATENATE(\"يوم \",CalendarDay-DATE(YEAR(CalendarDay),1,0)))","v":"يوم 25"},{"$f":"IF(WEEKDAY(CalendarDay)=WeekStartValue,CONCATENATE(\"أسبوع \",WEEKNUM(CalendarDay),\"/يوم \",CalendarDay-DATE(YEAR(CalendarDay),1,0)),CONCATENATE(\"يوم \",CalendarDay-DATE(YEAR(CalendarDay),1,0)))","v":"يوم 26"},{"$f":"IF(WEEKDAY(CalendarDay)=WeekStartValue,CONCATENATE(\"أسبوع \",WEEKNUM(CalendarDay),\"/يوم \",CalendarDay-DATE(YEAR(CalendarDay),1,0)),CONCATENATE(\"يوم \",CalendarDay-DATE(YEAR(CalendarDay),1,0)))","v":"يوم 27"}]
[]
[null,null,{"$f":"DaysAndWeeks+DATE(CalendarYear,1,1)-WEEKDAY(DATE(CalendarYear,1,1),(WeekStart=\"الإثنين\")+1)+29","v":"2018-01-28"},"2018-01-29","2018-01-30","2018-01-31","2018-02-01","2018-02-02","2018-02-03"]
[null,null,{"$f":"IF(WEEKDAY(CalendarDay)=WeekStartValue,CONCATENATE(\"أسبوع \",WEEKNUM(CalendarDay),\"/يوم \",CalendarDay-DATE(YEAR(CalendarDay),1,0)),CONCATENATE(\"يوم \",CalendarDay-DATE(YEAR(CalendarDay),1,0)))","v":"أسبوع 5/يوم 28"},{"$f":"IF(WEEKDAY(CalendarDay)=WeekStartValue,CONCATENATE(\"أسبوع \",WEEKNUM(CalendarDay),\"/يوم \",CalendarDay-DATE(YEAR(CalendarDay),1,0)),CONCATENATE(\"يوم \",CalendarDay-DATE(YEAR(CalendarDay),1,0)))","v":"يوم 29"},{"$f":"IF(WEEKDAY(CalendarDay)=WeekStartValue,CONCATENATE(\"أسبوع \",WEEKNUM(CalendarDay),\"/يوم \",CalendarDay-DATE(YEAR(CalendarDay),1,0)),CONCATENATE(\"يوم \",CalendarDay-DATE(YEAR(CalendarDay),1,0)))","v":"يوم 30"},{"$f":"IF(WEEKDAY(CalendarDay)=WeekStartValue,CONCATENATE(\"أسبوع \",WEEKNUM(CalendarDay),\"/يوم \",CalendarDay-DATE(YEAR(CalendarDay),1,0)),CONCATENATE(\"يوم \",CalendarDay-DATE(YEAR(CalendarDay),1,0)))","v":"يوم 31"},{"$f":"IF(WEEKDAY(CalendarDay)=WeekStartValue,CONCATENATE(\"أسبوع \",WEEKNUM(CalendarDay),\"/يوم \",CalendarDay-DATE(YEAR(CalendarDay),1,0)),CONCATENATE(\"يوم \",CalendarDay-DATE(YEAR(CalendarDay),1,0)))","v":"يوم 32"},{"$f":"IF(WEEKDAY(CalendarDay)=WeekStartValue,CONCATENATE(\"أسبوع \",WEEKNUM(CalendarDay),\"/يوم \",CalendarDay-DATE(YEAR(CalendarDay),1,0)),CONCATENATE(\"يوم \",CalendarDay-DATE(YEAR(CalendarDay),1,0)))","v":"يوم 33"},{"$f":"IF(WEEKDAY(CalendarDay)=WeekStartValue,CONCATENATE(\"أسبوع \",WEEKNUM(CalendarDay),\"/يوم \",CalendarDay-DATE(YEAR(CalendarDay),1,0)),CONCATENATE(\"يوم \",CalendarDay-DATE(YEAR(CalendarDay),1,0)))","v":"يوم 34"}]
[{"$nulls":4},"الملاحظات"]
[]
[null,null,{"$f":"DaysAndWeeks+DATE(CalendarYear,1,1)-WEEKDAY(DATE(CalendarYear,1,1),(WeekStart=\"الإثنين\")+1)+36","v":"2018-02-04"},"2018-02-05"]
[null,null,{"$f":"IF(WEEKDAY(CalendarDay)=WeekStartValue,CONCATENATE(\"أسبوع \",WEEKNUM(CalendarDay),\"/يوم \",CalendarDay-DATE(YEAR(CalendarDay),1,0)),CONCATENATE(\"يوم \",CalendarDay-DATE(YEAR(CalendarDay),1,0)))","v":"أسبوع 6/يوم 35"},{"$f":"IF(WEEKDAY(CalendarDay)=WeekStartValue,CONCATENATE(\"أسبوع \",WEEKNUM(CalendarDay),\"/يوم \",CalendarDay-DATE(YEAR(CalendarDay),1,0)),CONCATENATE(\"يوم \",CalendarDay-DATE(YEAR(CalendarDay),1,0)))","v":"يوم 36"}]

{"sheet":"فبراير","index":1,"n_rows":20,"n_cols":9,"rows_kept":20,"merged":[[16,2,17,2],[17,4,19,8]]}
[null,"فبراير",{"$f":"UPPER(TEXT(WeekStart,\"ddd\"))","v":"الأحد"},{"$f":"UPPER(TEXT(D3,\"aaa\"))","v":"الإثنين"},"الثلاثاء","الأربعاء","الخميس","الجمعة","السبت"]
[null,{"$f":"CalendarYear","v":2018}]
[null,null,{"$f":"DaysAndWeeks+DATE(CalendarYear,2,1)-WEEKDAY(DATE(CalendarYear,2,1),(WeekStart=\"الإثنين\")+1)+1","v":"2018-01-28"},"2018-01-29","2018-01-30","2018-01-31","2018-02-01","2018-02-02","2018-02-03"]
[null,null,{"$f":"IF(DAY(CalendarDay)=1,CONCATENATE(\"أسبوع \",WEEKNUM(CalendarDay),\"/يوم \",CalendarDay-DATE(YEAR(CalendarDay),1,0)),CONCATENATE(\"يوم \",CalendarDay-DATE(YEAR(CalendarDay),1,0)))","v":"يوم 28"},"يوم 29","يوم 30","يوم 31","أسبوع 5/يوم 32","يوم 33","يوم 34"]
[]
[null,null,{"$f":"DaysAndWeeks+DATE(CalendarYear,2,1)-WEEKDAY(DATE(CalendarYear,2,1),(WeekStart=\"الإثنين\")+1)+8","v":"2018-02-04"},"2018-02-05","2018-02-06","2018-02-07","2018-02-08","2018-02-09","2018-02-10"]
[null,null,{"$f":"IF(WEEKDAY(CalendarDay)=WeekStartValue,CONCATENATE(\"أسبوع \",WEEKNUM(CalendarDay),\"/يوم \",CalendarDay-DATE(YEAR(CalendarDay),1,0)),CONCATENATE(\"يوم \",CalendarDay-DATE(YEAR(CalendarDay),1,0)))","v":"أسبوع 6/يوم 35"},{"$f":"IF(WEEKDAY(CalendarDay)=WeekStartValue,CONCATENATE(\"أسبوع \",WEEKNUM(CalendarDay),\"/يوم \",CalendarDay-DATE(YEAR(CalendarDay),1,0)),CONCATENATE(\"يوم \",CalendarDay-DATE(YEAR(CalendarDay),1,0)))","v":"يوم 36"},{"$f":"IF(WEEKDAY(CalendarDay)=WeekStartValue,CONCATENATE(\"أسبوع \",WEEKNUM(CalendarDay),\"/يوم \",CalendarDay-DATE(YEAR(CalendarDay),1,0)),CONCATENATE(\"يوم \",CalendarDay-DATE(YEAR(CalendarDay),1,0)))","v":"يوم 37"},{"$f":"IF(WEEKDAY(CalendarDay)=WeekStartValue,CONCATENATE(\"أسبوع \",WEEKNUM(CalendarDay),\"/يوم \",CalendarDay-DATE(YEAR(CalendarDay),1,0)),CONCATENATE(\"يوم \",CalendarDay-DATE(YEAR(CalendarDay),1,0)))","v":"يوم 38"},{"$f":"IF(WEEKDAY(CalendarDay)=WeekStartValue,CONCATENATE(\"أسبوع \",WEEKNUM(CalendarDay),\"/يوم \",CalendarDay-DATE(YEAR(CalendarDay),1,0)),CONCATENATE(\"يوم \",CalendarDay-DATE(YEAR(CalendarDay),1,0)))","v":"يوم 39"},{"$f":"IF(WEEKDAY(CalendarDay)=WeekStartValue,CONCATENATE(\"أسبوع \",WEEKNUM(CalendarDay),\"/يوم \",CalendarDay-DATE(YEAR(CalendarDay),1,0)),CONCATENATE(\"يوم \",CalendarDay-DATE(YEAR(CalendarDay),1,0)))","v":"يوم 40"},{"$f":"IF(WEEKDAY(CalendarDay)=WeekStartValue,CONCATENATE(\"أسبوع \",WEEKNUM(CalendarDay),\"/يوم \",CalendarDay-DATE(YEAR(CalendarDay),1,0)),CONCATENATE(\"يوم \",CalendarDay-DATE(YEAR(CalendarDay),1,0)))","v":"يوم 41"}]
[]
[null,null,{"$f":"DaysAndWeeks+DATE(CalendarYear,2,1)-WEEKDAY(DATE(CalendarYear,2,1),(WeekStart=\"الإثنين\")+1)+15","v":"2018-02-11"},"2018-02-12","2018-02-13","2018-02-14","2018-02-15","2018-02-16","2018-02-17"]
[null,null,{"$f":"IF(WEEKDAY(CalendarDay)=WeekStartValue,CONCATENATE(\"أسبوع \",WEEKNUM(CalendarDay),\"/يوم \",CalendarDay-DATE(YEAR(CalendarDay),1,0)),CONCATENATE(\"يوم \",CalendarDay-DATE(YEAR(CalendarDay),1,0)))","v":"أسبوع 7/يوم 42"},{"$f":"IF(WEEKDAY(CalendarDay)=WeekStartValue,CONCATENATE(\"أسبوع \",WEEKNUM(CalendarDay),\"/يوم \",CalendarDay-DATE(YEAR(CalendarDay),1,0)),CONCATENATE(\"يوم \",CalendarDay-DATE(YEAR(CalendarDay),1,0)))","v":"يوم 43"},{"$f":"IF(WEEKDAY(CalendarDay)=WeekStartValue,CONCATENATE(\"أسبوع \",WEEKNUM(CalendarDay),\"/يوم \",CalendarDay-DATE(YEAR(CalendarDay),1,0)),CONCATENATE(\"يوم \",CalendarDay-DATE(YEAR(CalendarDay),1,0)))","v":"يوم 44"},{"$f":"IF(WEEKDAY(CalendarDay)=WeekStartValue,CONCATENATE(\"أسبوع \",WEEKNUM(CalendarDay),\"/يوم \",CalendarDay-DATE(YEAR(CalendarDay),1,0)),CONCATENATE(\"يوم \",CalendarDay-DATE(YEAR(CalendarDay),1,0)))","v":"يوم 45"},{"$f":"IF(WEEKDAY(CalendarDay)=WeekStartValue,CONCATENATE(\"أسبوع \",WEEKNUM(CalendarDay),\"/يوم \",CalendarDay-DATE(YEAR(CalendarDay),1,0)),CONCATENATE(\"يوم \",CalendarDay-DATE(YEAR(CalendarDay),1,0)))","v":"يوم 46"},{"$f":"IF(WEEKDAY(CalendarDay)=WeekStartValue,CONCATENATE(\"أسبوع \",WEEKNUM(CalendarDay),\"/يوم \",CalendarDay-DATE(YEAR(CalendarDay),1,0)),CONCATENATE(\"يوم \",CalendarDay-DATE(YEAR(CalendarDay),1,0)))","v":"يوم 47"},{"$f":"IF(WEEKDAY(CalendarDay)=WeekStartValue,CONCATENATE(\"أسبوع \",WEEKNUM(CalendarDay),\"/يوم \",CalendarDay-DATE(YEAR(CalendarDay),1,0)),CONCATENATE(\"يوم \",CalendarDay-DATE(YEAR(CalendarDay),1,0)))","v":"يوم 48"}]
[]
[null,null,{"$f":"DaysAndWeeks+DATE(CalendarYear,2,1)-WEEKDAY(DATE(CalendarYear,2,1),(WeekStart=\"الإثنين\")+1)+22","v":"2018-02-18"},"2018-02-19","2018-02-20","2018-02-21","2018-02-22","2018-02-23","2018-02-24"]
[null,null,{"$f":"IF(WEEKDAY(CalendarDay)=WeekStartValue,CONCATENATE(\"أسبوع \",WEEKNUM(CalendarDay),\"/يوم \",CalendarDay-DATE(YEAR(CalendarDay),1,0)),CONCATENATE(\"يوم \",CalendarDay-DATE(YEAR(CalendarDay),1,0)))","v":"أسبوع 8/يوم 49"},{"$f":"IF(WEEKDAY(CalendarDay)=WeekStartValue,CONCATENATE(\"أسبوع \",WEEKNUM(CalendarDay),\"/يوم \",CalendarDay-DATE(YEAR(CalendarDay),1,0)),CONCATENATE(\"يوم \",CalendarDay-DATE(YEAR(CalendarDay),1,0)))","v":"يوم 50"},{"$f":"IF(WEEKDAY(CalendarDay)=WeekStartValue,CONCATENATE(\"أسبوع \",WEEKNUM(CalendarDay),\"/يوم \",CalendarDay-DATE(YEAR(CalendarDay),1,0)),CONCATENATE(\"يوم \",CalendarDay-DATE(YEAR(CalendarDay),1,0)))","v":"يوم 51"},{"$f":"IF(WEEKDAY(CalendarDay)=WeekStartValue,CONCATENATE(\"أسبوع \",WEEKNUM(CalendarDay),\"/يوم \",CalendarDay-DATE(YEAR(CalendarDay),1,0)),CONCATENATE(\"يوم \",CalendarDay-DATE(YEAR(CalendarDay),1,0)))","v":"يوم 52"},{"$f":"IF(WEEKDAY(CalendarDay)=WeekStartValue,CONCATENATE(\"أسبوع \",WEEKNUM(CalendarDay),\"/يوم \",CalendarDay-DATE(YEAR(CalendarDay),1,0)),CONCATENATE(\"يوم \",CalendarDay-DATE(YEAR(CalendarDay),1,0)))","v":"يوم 53"},{"$f":"IF(WEEKDAY(CalendarDay)=WeekStartValue,CONCATENATE(\"أسبوع \",WEEKNUM(CalendarDay),\"/يوم \",CalendarDay-DATE(YEAR(CalendarDay),1,0)),CONCATENATE(\"يوم \",CalendarDay-DATE(YEAR(CalendarDay),1,0)))","v":"يوم 54"},{"$f":"IF(WEEKDAY(CalendarDay)=WeekStartValue,CONCATENATE(\"أسبوع \",WEEKNUM(CalendarDay),\"/يوم \",CalendarDay-DATE(YEAR(CalendarDay),1,0)),CONCATENATE(\"يوم \",CalendarDay-DATE(YEAR(CalendarDay),1,0)))","v":"يوم 55"}]
[]
[null,null,{"$f":"DaysAndWeeks+DATE(CalendarYear,2,1)-WEEKDAY(DATE(CalendarYear,2,1),(WeekStart=\"الإثنين\")+1)+29","v":"2018-02-25"},"2018-02-26","2018-02-27","2018-02-28","2018-03-01","2018-03-02","2018-03-03"]
[null,null,{"$f":"IF(WEEKDAY(CalendarDay)=WeekStartValue,CONCATENATE(\"أسبوع \",WEEKNUM(CalendarDay),\"/يوم \",CalendarDay-DATE(YEAR(CalendarDay),1,0)),CONCATENATE(\"يوم \",CalendarDay-DATE(YEAR(CalendarDay),1,0)))","v":"أسبوع 9/يوم 56"},{"$f":"IF(WEEKDAY(CalendarDay)=WeekStartValue,CONCATENATE(\"أسبوع \",WEEKNUM(CalendarDay),\"/يوم \",CalendarDay-DATE(YEAR(CalendarDay),1,0)),CONCATENATE(\"يوم \",CalendarDay-DATE(YEAR(CalendarDay),1,0)))","v":"يوم 57"},{"$f":"IF(WEEKDAY(CalendarDay)=WeekStartValue,CONCATENATE(\"أسبوع \",WEEKNUM(CalendarDay),\"/يوم \",CalendarDay-DATE(YEAR(CalendarDay),1,0)),CONCATENATE(\"يوم \",CalendarDay-DATE(YEAR(CalendarDay),1,0)))","v":"يوم 58"},{"$f":"IF(WEEKDAY(CalendarDay)=WeekStartValue,CONCATENATE(\"أسبوع \",WEEKNUM(CalendarDay),\"/يوم \",CalendarDay-DATE(YEAR(CalendarDay),1,0)),CONCATENATE(\"يوم \",CalendarDay-DATE(YEAR(CalendarDay),1,0)))","v":"يوم 59"},{"$f":"IF(WEEKDAY(CalendarDay)=WeekStartValue,CONCATENATE(\"أسبوع \",WEEKNUM(CalendarDay),\"/يوم \",CalendarDay-DATE(YEAR(CalendarDay),1,0)),CONCATENATE(\"يوم \",CalendarDay-DATE(YEAR(CalendarDay),1,0)))","v":"يوم 60"},{"$f":"IF(WEEKDAY(CalendarDay)=WeekStartValue,CONCATENATE(\"أسبوع \",WEEKNUM(CalendarDay),\"/يوم \",CalendarDay-DATE(YEAR(CalendarDay),1,0)),CONCATENATE(\"يوم \",CalendarDay-DATE(YEAR(CalendarDay),1,0)))","v":"يوم 61"},{"$f":"IF(WEEKDAY(CalendarDay)=WeekStartValue,CONCATENATE(\"أسبوع \",WEEKNUM(CalendarDay),\"/يوم \",CalendarDay-DATE(YEAR(CalendarDay),1,0)),CONCATENATE(\"يوم \",CalendarDay-DATE(YEAR(CalendarDay),1,0)))","v":"يوم 62"}]
[{"$nulls":4},"الملاحظات"]
[]
[null,null,{"$f":"DaysAndWeeks+DATE(CalendarYear,2,1)-WEEKDAY(DATE(CalendarYear,2,1),(WeekStart=\"الإثنين\")+1)+36","v":"2018-03-04"},"2018-03-05"]
[null,null,{"$f":"IF(WEEKDAY(CalendarDay)=WeekStartValue,CONCATENATE(\"أسبوع \",WEEKNUM(CalendarDay),\"/يوم \",CalendarDay-DATE(YEAR(CalendarDay),1,0)),CONCATENATE(\"يوم \",CalendarDay-DATE(YEAR(CalendarDay),1,0)))","v":"أسبوع 10/يوم 63"},{"$f":"IF(WEEKDAY(CalendarDay)=WeekStartValue,CONCATENATE(\"أسبوع \",WEEKNUM(CalendarDay),\"/يوم \",CalendarDay-DATE(YEAR(CalendarDay),1,0)),CONCATENATE(\"يوم \",CalendarDay-DATE(YEAR(CalendarDay),1,0)))","v":"يوم 64"}]

{"sheet":"مارس","index":2,"n_rows":20,"n_cols":9,"rows_kept":20,"merged":[[16,2,17,2],[17,4,19,8]]}
[null,"مارس",{"$f":"UPPER(TEXT(WeekStart,\"ddd\"))","v":"الأحد"},{"$f":"UPPER(TEXT(D3,\"aaa\"))","v":"الإثنين"},"الثلاثاء","الأربعاء","الخميس","الجمعة","السبت"]
[null,{"$f":"CalendarYear","v":2018}]
[null,null,{"$f":"DaysAndWeeks+DATE(CalendarYear,3,1)-WEEKDAY(DATE(CalendarYear,3,1),(WeekStart=\"الإثنين\")+1)+1","v":"2018-02-25"},"2018-02-26","2018-02-27","2018-02-28","2018-03-01","2018-03-02","2018-03-03"]
[null,null,{"$f":"IF(DAY(CalendarDay)=1,CONCATENATE(\"أسبوع \",WEEKNUM(CalendarDay),\"/يوم \",CalendarDay-DATE(YEAR(CalendarDay),1,0)),CONCATENATE(\"يوم \",CalendarDay-DATE(YEAR(CalendarDay),1,0)))","v":"يوم 56"},"يوم 57","يوم 58","يوم 59","أسبوع 9/يوم 60","يوم 61","يوم 62"]
[]
[null,null,{"$f":"DaysAndWeeks+DATE(CalendarYear,3,1)-WEEKDAY(DATE(CalendarYear,3,1),(WeekStart=\"الإثنين\")+1)+8","v":"2018-03-04"},"2018-03-05","2018-03-06","2018-03-07","2018-03-08","2018-03-09","2018-03-10"]
[null,null,{"$f":"IF(WEEKDAY(CalendarDay)=WeekStartValue,CONCATENATE(\"أسبوع \",WEEKNUM(CalendarDay),\"/يوم \",CalendarDay-DATE(YEAR(CalendarDay),1,0)),CONCATENATE(\"يوم \",CalendarDay-DATE(YEAR(CalendarDay),1,0)))","v":"أسبوع 10/يوم 63"},{"$f":"IF(WEEKDAY(CalendarDay)=WeekStartValue,CONCATENATE(\"أسبوع \",WEEKNUM(CalendarDay),\"/يوم \",CalendarDay-DATE(YEAR(CalendarDay),1,0)),CONCATENATE(\"يوم \",CalendarDay-DATE(YEAR(CalendarDay),1,0)))","v":"يوم 64"},{"$f":"IF(WEEKDAY(CalendarDay)=WeekStartValue,CONCATENATE(\"أسبوع \",WEEKNUM(CalendarDay),\"/يوم \",CalendarDay-DATE(YEAR(CalendarDay),1,0)),CONCATENATE(\"يوم \",CalendarDay-DATE(YEAR(CalendarDay),1,0)))","v":"يوم 65"},{"$f":"IF(WEEKDAY(CalendarDay)=WeekStartValue,CONCATENATE(\"أسبوع \",WEEKNUM(CalendarDay),\"/يوم \",CalendarDay-DATE(YEAR(CalendarDay),1,0)),CONCATENATE(\"يوم \",CalendarDay-DATE(YEAR(CalendarDay),1,0)))","v":"يوم 66"},{"$f":"IF(WEEKDAY(CalendarDay)=WeekStartValue,CONCATENATE(\"أسبوع \",WEEKNUM(CalendarDay),\"/يوم \",CalendarDay-DATE(YEAR(CalendarDay),1,0)),CONCATENATE(\"يوم \",CalendarDay-DATE(YEAR(CalendarDay),1,0)))","v":"يوم 67"},{"$f":"IF(WEEKDAY(CalendarDay)=WeekStartValue,CONCATENATE(\"أسبوع \",WEEKNUM(CalendarDay),\"/يوم \",CalendarDay-DATE(YEAR(CalendarDay),1,0)),CONCATENATE(\"يوم \",CalendarDay-DATE(YEAR(CalendarDay),1,0)))","v":"يوم 68"},{"$f":"IF(WEEKDAY(CalendarDay)=WeekStartValue,CONCATENATE(\"أسبوع \",WEEKNUM(CalendarDay),\"/يوم \",CalendarDay-DATE(YEAR(CalendarDay),1,0)),CONCATENATE(\"يوم \",CalendarDay-DATE(YEAR(CalendarDay),1,0)))","v":"يوم 69"}]
[]
[null,null,{"$f":"DaysAndWeeks+DATE(CalendarYear,3,1)-WEEKDAY(DATE(CalendarYear,3,1),(WeekStart=\"الإثنين\")+1)+15","v":"2018-03-11"},"2018-03-12","2018-03-13","2018-03-14","2018-03-15","2018-03-16","2018-03-17"]
[null,null,{"$f":"IF(WEEKDAY(CalendarDay)=WeekStartValue,CONCATENATE(\"أسبوع \",WEEKNUM(CalendarDay),\"/يوم \",CalendarDay-DATE(YEAR(CalendarDay),1,0)),CONCATENATE(\"يوم \",CalendarDay-DATE(YEAR(CalendarDay),1,0)))","v":"أسبوع 11/يوم 70"},{"$f":"IF(WEEKDAY(CalendarDay)=WeekStartValue,CONCATENATE(\"أسبوع \",WEEKNUM(CalendarDay),\"/يوم \",CalendarDay-DATE(YEAR(CalendarDay),1,0)),CONCATENATE(\"يوم \",CalendarDay-DATE(YEAR(CalendarDay),1,0)))","v":"يوم 71"},{"$f":"IF(WEEKDAY(CalendarDay)=WeekStartValue,CONCATENATE(\"أسبوع \",WEEKNUM(CalendarDay),\"/يوم \",CalendarDay-DATE(YEAR(CalendarDay),1,0)),CONCATENATE(\"يوم \",CalendarDay-DATE(YEAR(CalendarDay),1,0)))","v":"يوم 72"},{"$f":"IF(WEEKDAY(CalendarDay)=WeekStartValue,CONCATENATE(\"أسبوع \",WEEKNUM(CalendarDay),\"/يوم \",CalendarDay-DATE(YEAR(CalendarDay),1,0)),CONCATENATE(\"يوم \",CalendarDay-DATE(YEAR(CalendarDay),1,0)))","v":"يوم 73"},{"$f":"IF(WEEKDAY(CalendarDay)=WeekStartValue,CONCATENATE(\"أسبوع \",WEEKNUM(CalendarDay),\"/يوم \",CalendarDay-DATE(YEAR(CalendarDay),1,0)),CONCATENATE(\"يوم \",CalendarDay-DATE(YEAR(CalendarDay),1,0)))","v":"يوم 74"},{"$f":"IF(WEEKDAY(CalendarDay)=WeekStartValue,CONCATENATE(\"أسبوع \",WEEKNUM(CalendarDay),\"/يوم \",CalendarDay-DATE(YEAR(CalendarDay),1,0)),CONCATENATE(\"يوم \",CalendarDay-DATE(YEAR(CalendarDay),1,0)))","v":"يوم 75"},{"$f":"IF(WEEKDAY(CalendarDay)=WeekStartValue,CONCATENATE(\"أسبوع \",WEEKNUM(CalendarDay),\"/يوم \",CalendarDay-DATE(YEAR(CalendarDay),1,0)),CONCATENATE(\"يوم \",CalendarDay-DATE(YEAR(CalendarDay),1,0)))","v":"يوم 76"}]
[]
[null,null,{"$f":"DaysAndWeeks+DATE(CalendarYear,3,1)-WEEKDAY(DATE(CalendarYear,3,1),(WeekStart=\"الإثنين\")+1)+22","v":"2018-03-18"},"2018-03-19","2018-03-20","2018-03-21","2018-03-22","2018-03-23","2018-03-24"]
[null,null,{"$f":"IF(WEEKDAY(CalendarDay)=WeekStartValue,CONCATENATE(\"أسبوع \",WEEKNUM(CalendarDay),\"/يوم \",CalendarDay-DATE(YEAR(CalendarDay),1,0)),CONCATENATE(\"يوم \",CalendarDay-DATE(YEAR(CalendarDay),1,0)))","v":"أسبوع 12/يوم 77"},{"$f":"IF(WEEKDAY(CalendarDay)=WeekStartValue,CONCATENATE(\"أسبوع \",WEEKNUM(CalendarDay),\"/يوم \",CalendarDay-DATE(YEAR(CalendarDay),1,0)),CONCATENATE(\"يوم \",CalendarDay-DATE(YEAR(CalendarDay),1,0)))","v":"يوم 78"},{"$f":"IF(WEEKDAY(CalendarDay)=WeekStartValue,CONCATENATE(\"أسبوع \",WEEKNUM(CalendarDay),\"/يوم \",CalendarDay-DATE(YEAR(CalendarDay),1,0)),CONCATENATE(\"يوم \",CalendarDay-DATE(YEAR(CalendarDay),1,0)))","v":"يوم 79"},{"$f":"IF(WEEKDAY(CalendarDay)=WeekStartValue,CONCATENATE(\"أسبوع \",WEEKNUM(CalendarDay),\"/يوم \",CalendarDay-DATE(YEAR(CalendarDay),1,0)),CONCATENATE(\"يوم \",CalendarDay-DATE(YEAR(CalendarDay),1,0)))","v":"يوم 80"},{"$f":"IF(WEEKDAY(CalendarDay)=WeekStartValue,CONCATENATE(\"أسبوع \",WEEKNUM(CalendarDay),\"/يوم \",CalendarDay-DATE(YEAR(CalendarDay),1,0)),CONCATENATE(\"يوم \",CalendarDay-DATE(YEAR(CalendarDay),1,0)))","v":"يوم 81"},{"$f":"IF(WEEKDAY(CalendarDay)=WeekStartValue,CONCATENATE(\"أسبوع \",WEEKNUM(CalendarDay),\"/يوم \",CalendarDay-DATE(YEAR(CalendarDay),1,0)),CONCATENATE(\"يوم \",CalendarDay-DATE(YEAR(CalendarDay),1,0)))","v":"يوم 82"},{"$f":"IF(WEEKDAY(CalendarDay)=WeekStartValue,CONCATENATE(\"أسبوع \",WEEKNUM(CalendarDay),\"/يوم \",CalendarDay-DATE(YEAR(CalendarDay),1,0)),CONCATENATE(\"يوم \",CalendarDay-DATE(YEAR(CalendarDay),1,0)))","v":"يوم 83"}]
[]
[null,null,{"$f":"DaysAndWeeks+DATE(CalendarYear,3,1)-WEEKDAY(DATE(CalendarYear,3,1),(WeekStart=\"الإثنين\")+1)+29","v":"2018-03-25"},"2018-03-26","2018-03-27","2018-03-28","2018-03-29","2018-03-30","2018-03-31"]
[null,null,{"$f":"IF(WEEKDAY(CalendarDay)=WeekStartValue,CONCATENATE(\"أسبوع \",WEEKNUM(CalendarDay),\"/يوم \",CalendarDay-DATE(YEAR(CalendarDay),1,0)),CONCATENATE(\"يوم \",CalendarDay-DATE(YEAR(CalendarDay),1,0)))","v":"أسبوع 13/يوم 84"},{"$f":"IF(WEEKDAY(CalendarDay)=WeekStartValue,CONCATENATE(\"أسبوع \",WEEKNUM(CalendarDay),\"/يوم \",CalendarDay-DATE(YEAR(CalendarDay),1,0)),CONCATENATE(\"يوم \",CalendarDay-DATE(YEAR(CalendarDay),1,0)))","v":"يوم 85"},{"$f":"IF(WEEKDAY(CalendarDay)=WeekStartValue,CONCATENATE(\"أسبوع \",WEEKNUM(CalendarDay),\"/يوم \",CalendarDay-DATE(YEAR(CalendarDay),1,0)),CONCATENATE(\"يوم \",CalendarDay-DATE(YEAR(CalendarDay),1,0)))","v":"يوم 86"},{"$f":"IF(WEEKDAY(CalendarDay)=WeekStartValue,CONCATENATE(\"أسبوع \",WEEKNUM(CalendarDay),\"/يوم \",CalendarDay-DATE(YEAR(CalendarDay),1,0)),CONCATENATE(\"يوم \",CalendarDay-DATE(YEAR(CalendarDay),1,0)))","v":"يوم 87"},{"$f":"IF(WEEKDAY(CalendarDay)=WeekStartValue,CONCATENATE(\"أسبوع \",WEEKNUM(CalendarDay),\"/يوم \",CalendarDay-DATE(YEAR(CalendarDay),1,0)),CONCATENATE(\"يوم \",CalendarDay-DATE(YEAR(CalendarDay),1,0)))","v":"يوم 88"},{"$f":"IF(WEEKDAY(CalendarDay)=WeekStartValue,CONCATENATE(\"أسبوع \",WEEKNUM(CalendarDay),\"/يوم \",CalendarDay-DATE(YEAR(CalendarDay),1,0)),CONCATENATE(\"يوم \",CalendarDay-DATE(YEAR(CalendarDay),1,0)))","v":"يوم 89"},{"$f":"IF(WEEKDAY(CalendarDay)=WeekStartValue,CONCATENATE(\"أسبوع \",WEEKNUM(CalendarDay),\"/يوم \",CalendarDay-DATE(YEAR(CalendarDay),1,0)),CONCATENATE(\"يوم \",CalendarDay-DATE(YEAR(CalendarDay),1,0)))","v":"يوم 90"}]
[{"$nulls":4},"الملاحظات"]
[]
[null,null,{"$f":"DaysAndWeeks+DATE(CalendarYear,3,1)-WEEKDAY(DATE(CalendarYear,3,1),(WeekStart=\"الإثنين\")+1)+36","v":"2018-04-01"},"2018-04-02"]
[null,null,{"$f":"IF(WEEKDAY(CalendarDay)=WeekStartValue,CONCATENATE(\"أسبوع \",WEEKNUM(CalendarDay),\"/يوم \",CalendarDay-DATE(YEAR(CalendarDay),1,0)),CONCATENATE(\"يوم \",CalendarDay-DATE(YEAR(CalendarDay),1,0)))","v":"أسبوع 14/يوم 91"},{"$f":"IF(WEEKDAY(CalendarDay)=WeekStartValue,CONCATENATE(\"أسبوع \",WEEKNUM(CalendarDay),\"/يوم \",CalendarDay-DATE(YEAR(CalendarDay),1,0)),CONCATENATE(\"يوم \",CalendarDay-DATE(YEAR(CalendarDay),1,0)))","v":"يوم 92"}]

{"sheet":"أبريل","index":3,"n_rows":20,"n_cols":9,"rows_kept":20,"merged":[[16,2,17,2],[17,4,19,8]]}
[null,"أبريل",{"$f":"UPPER(TEXT(WeekStart,\"ddd\"))","v":"الأحد"},{"$f":"UPPER(TEXT(D3,\"aaa\"))","v":"الإثنين"},"الثلاثاء","الأربعاء","الخميس","الجمعة","السبت"]
[null,{"$f":"CalendarYear","v":2018}]
[null,null,{"$f":"DaysAndWeeks+DATE(CalendarYear,4,1)-WEEKDAY(DATE(CalendarYear,4,1),(WeekStart=\"الإثنين\")+1)+1","v":"2018-04-01"},"2018-04-02","2018-04-03","2018-04-04","2018-04-05","2018-04-06","2018-04-07"]
[null,null,{"$f":"IF(DAY(CalendarDay)=1,CONCATENATE(\"أسبوع \",WEEKNUM(CalendarDay),\"/يوم \",CalendarDay-DATE(YEAR(CalendarDay),1,0)),CONCATENATE(\"يوم \",CalendarDay-DATE(YEAR(CalendarDay),1,0)))","v":"أسبوع 14/يوم 91"},"يوم 92","يوم 93","يوم 94","يوم 95","يوم 96","يوم 97"]
[]
[null,null,{"$f":"DaysAndWeeks+DATE(CalendarYear,4,1)-WEEKDAY(DATE(CalendarYear,4,1),(WeekStart=\"الإثنين\")+1)+8","v":"2018-04-08"},"2018-04-09","2018-04-10","2018-04-11","2018-04-12","2018-04-13","2018-04-14"]
[null,null,{"$f":"IF(WEEKDAY(CalendarDay)=WeekStartValue,CONCATENATE(\"أسبوع \",WEEKNUM(CalendarDay),\"/يوم \",CalendarDay-DATE(YEAR(CalendarDay),1,0)),CONCATENATE(\"يوم \",CalendarDay-DATE(YEAR(CalendarDay),1,0)))","v":"أسبوع 15/يوم 98"},{"$f":"IF(WEEKDAY(CalendarDay)=WeekStartValue,CONCATENATE(\"أسبوع \",WEEKNUM(CalendarDay),\"/يوم \",CalendarDay-DATE(YEAR(CalendarDay),1,0)),CONCATENATE(\"يوم \",CalendarDay-DATE(YEAR(CalendarDay),1,0)))","v":"يوم 99"},{"$f":"IF(WEEKDAY(CalendarDay)=WeekStartValue,CONCATENATE(\"أسبوع \",WEEKNUM(CalendarDay),\"/يوم \",CalendarDay-DATE(YEAR(CalendarDay),1,0)),CONCATENATE(\"يوم \",CalendarDay-DATE(YEAR(CalendarDay),1,0)))","v":"يوم 100"},{"$f":"IF(WEEKDAY(CalendarDay)=WeekStartValue,CONCATENATE(\"أسبوع \",WEEKNUM(CalendarDay),\"/يوم \",CalendarDay-DATE(YEAR(CalendarDay),1,0)),CONCATENATE(\"يوم \",CalendarDay-DATE(YEAR(CalendarDay),1,0)))","v":"يوم 101"},{"$f":"IF(WEEKDAY(CalendarDay)=WeekStartValue,CONCATENATE(\"أسبوع \",WEEKNUM(CalendarDay),\"/يوم \",CalendarDay-DATE(YEAR(CalendarDay),1,0)),CONCATENATE(\"يوم \",CalendarDay-DATE(YEAR(CalendarDay),1,0)))","v":"يوم 102"},{"$f":"IF(WEEKDAY(CalendarDay)=WeekStartValue,CONCATENATE(\"أسبوع \",WEEKNUM(CalendarDay),\"/يوم \",CalendarDay-DATE(YEAR(CalendarDay),1,0)),CONCATENATE(\"يوم \",CalendarDay-DATE(YEAR(CalendarDay),1,0)))","v":"يوم 103"},{"$f":"IF(WEEKDAY(CalendarDay)=WeekStartValue,CONCATENATE(\"أسبوع \",WEEKNUM(CalendarDay),\"/يوم \",CalendarDay-DATE(YEAR(CalendarDay),1,0)),CONCATENATE(\"يوم \",CalendarDay-DATE(YEAR(CalendarDay),1,0)))","v":"يوم 104"}]
[]
[null,null,{"$f":"DaysAndWeeks+DATE(CalendarYear,4,1)-WEEKDAY(DATE(CalendarYear,4,1),(WeekStart=\"الإثنين\")+1)+15","v":"2018-04-15"},"2018-04-16","2018-04-17","2018-04-18","2018-04-19","2018-04-20","2018-04-21"]
[null,null,{"$f":"IF(WEEKDAY(CalendarDay)=WeekStartValue,CONCATENATE(\"أسبوع \",WEEKNUM(CalendarDay),\"/يوم \",CalendarDay-DATE(YEAR(CalendarDay),1,0)),CONCATENATE(\"يوم \",CalendarDay-DATE(YEAR(CalendarDay),1,0)))","v":"أسبوع 16/يوم 105"},{"$f":"IF(WEEKDAY(CalendarDay)=WeekStartValue,CONCATENATE(\"أسبوع \",WEEKNUM(CalendarDay),\"/يوم \",CalendarDay-DATE(YEAR(CalendarDay),1,0)),CONCATENATE(\"يوم \",CalendarDay-DATE(YEAR(CalendarDay),1,0)))","v":"يوم 106"},{"$f":"IF(WEEKDAY(CalendarDay)=WeekStartValue,CONCATENATE(\"أسبوع \",WEEKNUM(CalendarDay),\"/يوم \",CalendarDay-DATE(YEAR(CalendarDay),1,0)),CONCATENATE(\"يوم \",CalendarDay-DATE(YEAR(CalendarDay),1,0)))","v":"يوم 107"},{"$f":"IF(WEEKDAY(CalendarDay)=WeekStartValue,CONCATENATE(\"أسبوع \",WEEKNUM(CalendarDay),\"/يوم \",CalendarDay-DATE(YEAR(CalendarDay),1,0)),CONCATENATE(\"يوم \",CalendarDay-DATE(YEAR(CalendarDay),1,0)))","v":"يوم 108"},{"$f":"IF(WEEKDAY(CalendarDay)=WeekStartValue,CONCATENATE(\"أسبوع \",WEEKNUM(CalendarDay),\"/يوم \",CalendarDay-DATE(YEAR(CalendarDay),1,0)),CONCATENATE(\"يوم \",CalendarDay-DATE(YEAR(CalendarDay),1,0)))","v":"يوم 109"},{"$f":"IF(WEEKDAY(CalendarDay)=WeekStartValue,CONCATENATE(\"أسبوع \",WEEKNUM(CalendarDay),\"/يوم \",CalendarDay-DATE(YEAR(CalendarDay),1,0)),CONCATENATE(\"يوم \",CalendarDay-DATE(YEAR(CalendarDay),1,0)))","v":"يوم 110"},{"$f":"IF(WEEKDAY(CalendarDay)=WeekStartValue,CONCATENATE(\"أسبوع \",WEEKNUM(CalendarDay),\"/يوم \",CalendarDay-DATE(YEAR(CalendarDay),1,0)),CONCATENATE(\"يوم \",CalendarDay-DATE(YEAR(CalendarDay),1,0)))","v":"يوم 111"}]
[]
[null,null,{"$f":"DaysAndWeeks+DATE(CalendarYear,4,1)-WEEKDAY(DATE(CalendarYear,4,1),(WeekStart=\"الإثنين\")+1)+22","v":"2018-04-22"},"2018-04-23","2018-04-24","2018-04-25","2018-04-26","2018-04-27","2018-04-28"]
[null,null,{"$f":"IF(WEEKDAY(CalendarDay)=WeekStartValue,CONCATENATE(\"أسبوع \",WEEKNUM(CalendarDay),\"/يوم \",CalendarDay-DATE(YEAR(CalendarDay),1,0)),CONCATENATE(\"يوم \",CalendarDay-DATE(YEAR(CalendarDay),1,0)))","v":"أسبوع 17/يوم 112"},{"$f":"IF(WEEKDAY(CalendarDay)=WeekStartValue,CONCATENATE(\"أسبوع \",WEEKNUM(CalendarDay),\"/يوم \",CalendarDay-DATE(YEAR(CalendarDay),1,0)),CONCATENATE(\"يوم \",CalendarDay-DATE(YEAR(CalendarDay),1,0)))","v":"يوم 113"},{"$f":"IF(WEEKDAY(CalendarDay)=WeekStartValue,CONCATENATE(\"أسبوع \",WEEKNUM(CalendarDay),\"/يوم \",CalendarDay-DATE(YEAR(CalendarDay),1,0)),CONCATENATE(\"يوم \",CalendarDay-DATE(YEAR(CalendarDay),1,0)))","v":"يوم 114"},{"$f":"IF(WEEKDAY(CalendarDay)=WeekStartValue,CONCATENATE(\"أسبوع \",WEEKNUM(CalendarDay),\"/يوم \",CalendarDay-DATE(YEAR(CalendarDay),1,0)),CONCATENATE(\"يوم \",CalendarDay-DATE(YEAR(CalendarDay),1,0)))","v":"يوم 115"},{"$f":"IF(WEEKDAY(CalendarDay)=WeekStartValue,CONCATENATE(\"أسبوع \",WEEKNUM(CalendarDay),\"/يوم \",CalendarDay-DATE(YEAR(CalendarDay),1,0)),CONCATENATE(\"يوم \",CalendarDay-DATE(YEAR(CalendarDay),1,0)))","v":"يوم 116"},{"$f":"IF(WEEKDAY(CalendarDay)=WeekStartValue,CONCATENATE(\"أسبوع \",WEEKNUM(CalendarDay),\"/يوم \",CalendarDay-DATE(YEAR(CalendarDay),1,0)),CONCATENATE(\"يوم \",CalendarDay-DATE(YEAR(CalendarDay),1,0)))","v":"يوم 117"},{"$f":"IF(WEEKDAY(CalendarDay)=WeekStartValue,CONCATENATE(\"أسبوع \",WEEKNUM(CalendarDay),\"/يوم \",CalendarDay-DATE(YEAR(CalendarDay),1,0)),CONCATENATE(\"يوم \",CalendarDay-DATE(YEAR(CalendarDay),1,0)))","v":"يوم 118"}]
[]
[null,null,{"$f":"DaysAndWeeks+DATE(CalendarYear,4,1)-WEEKDAY(DATE(CalendarYear,4,1),(WeekStart=\"الإثنين\")+1)+29","v":"2018-04-29"},"2018-04-30","2018-05-01","2018-05-02","2018-05-03","2018-05-04","2018-05-05"]
[null,null,{"$f":"IF(WEEKDAY(CalendarDay)=WeekStartValue,CONCATENATE(\"أسبوع \",WEEKNUM(CalendarDay),\"/يوم \",CalendarDay-DATE(YEAR(CalendarDay),1,0)),CONCATENATE(\"يوم \",CalendarDay-DATE(YEAR(CalendarDay),1,0)))","v":"أسبوع 18/يوم 119"},{"$f":"IF(WEEKDAY(CalendarDay)=WeekStartValue,CONCATENATE(\"أسبوع \",WEEKNUM(CalendarDay),\"/يوم \",CalendarDay-DATE(YEAR(CalendarDay),1,0)),CONCATENATE(\"يوم \",CalendarDay-DATE(YEAR(CalendarDay),1,0)))","v":"يوم 120"},{"$f":"IF(WEEKDAY(CalendarDay)=WeekStartValue,CONCATENATE(\"أسبوع \",WEEKNUM(CalendarDay),\"/يوم \",CalendarDay-DATE(YEAR(CalendarDay),1,0)),CONCATENATE(\"يوم \",CalendarDay-DATE(YEAR(CalendarDay),1,0)))","v":"يوم 121"},{"$f":"IF(WEEKDAY(CalendarDay)=WeekStartValue,CONCATENATE(\"أسبوع \",WEEKNUM(CalendarDay),\"/يوم \",CalendarDay-DATE(YEAR(CalendarDay),1,0)),CONCATENATE(\"يوم \",CalendarDay-DATE(YEAR(CalendarDay),1,0)))","v":"يوم 122"},{"$f":"IF(WEEKDAY(CalendarDay)=WeekStartValue,CONCATENATE(\"أسبوع \",WEEKNUM(CalendarDay),\"/يوم \",CalendarDay-DATE(YEAR(CalendarDay),1,0)),CONCATENATE(\"يوم \",CalendarDay-DATE(YEAR(CalendarDay),1,0)))","v":"يوم 123"},{"$f":"IF(WEEKDAY(CalendarDay)=WeekStartValue,CONCATENATE(\"أسبوع \",WEEKNUM(CalendarDay),\"/يوم \",CalendarDay-DATE(YEAR(CalendarDay),1,0)),CONCATENATE(\"يوم \",CalendarDay-DATE(YEAR(CalendarDay),1,0)))","v":"يوم 124"},{"$f":"IF(WEEKDAY(CalendarDay)=WeekStartValue,CONCATENATE(\"أسبوع \",WEEKNUM(CalendarDay),\"/يوم \",CalendarDay-DATE(YEAR(CalendarDay),1,0)),CONCATENATE(\"يوم \",CalendarDay-DATE(YEAR(CalendarDay),1,0)))","v":"يوم 125"}]
[{"$nulls":4},"الملاحظات"]
[]
[null,null,{"$f":"DaysAndWeeks+DATE(CalendarYear,4,1)-WEEKDAY(DATE(CalendarYear,4,1),(WeekStart=\"الإثنين\")+1)+36","v":"2018-05-06"},"2018-05-07"]
[null,null,{"$f":"IF(WEEKDAY(CalendarDay)=WeekStartValue,CONCATENATE(\"أسبوع \",WEEKNUM(CalendarDay),\"/يوم \",CalendarDay-DATE(YEAR(CalendarDay),1,0)),CONCATENATE(\"يوم \",CalendarDay-DATE(YEAR(CalendarDay),1,0)))","v":"أسبوع 19/يوم 126"},{"$f":"IF(WEEKDAY(CalendarDay)=WeekStartValue,CONCATENATE(\"أسبوع \",WEEKNUM(CalendarDay),\"/يوم \",CalendarDay-DATE(YEAR(CalendarDay),1,0)),CONCATENATE(\"يوم \",CalendarDay-DATE(YEAR(CalendarDay),1,0)))","v":"يوم 127"}]

{"sheet":"مايو","index":4,"n_rows":20,"n_cols":9,"rows_kept":20,"merged":[[16,2,17,2],[17,4,19,8]]}
[null,"مايو",{"$f":"UPPER(TEXT(WeekStart,\"ddd\"))","v":"الأحد"},{"$f":"UPPER(TEXT(D3,\"aaa\"))","v":"الإثنين"},"الثلاثاء","الأربعاء","الخميس","الجمعة","السبت"]
[null,{"$f":"CalendarYear","v":2018}]
[null,null,{"$f":"DaysAndWeeks+DATE(CalendarYear,5,1)-WEEKDAY(DATE(CalendarYear,5,1),(WeekStart=\"الإثنين\")+1)+1","v":"2018-04-29"},"2018-04-30","2018-05-01","2018-05-02","2018-05-03","2018-05-04","2018-05-05"]
[null,null,{"$f":"IF(DAY(CalendarDay)=1,CONCATENATE(\"أسبوع \",WEEKNUM(CalendarDay),\"/يوم \",CalendarDay-DATE(YEAR(CalendarDay),1,0)),CONCATENATE(\"يوم \",CalendarDay-DATE(YEAR(CalendarDay),1,0)))","v":"يوم 119"},"يوم 120","أسبوع 18/يوم 121","يوم 122","يوم 123","يوم 124","يوم 125"]
[]
[null,null,{"$f":"DaysAndWeeks+DATE(CalendarYear,5,1)-WEEKDAY(DATE(CalendarYear,5,1),(WeekStart=\"الإثنين\")+1)+8","v":"2018-05-06"},"2018-05-07","2018-05-08","2018-05-09","2018-05-10","2018-05-11","2018-05-12"]
[null,null,{"$f":"IF(WEEKDAY(CalendarDay)=WeekStartValue,CONCATENATE(\"أسبوع \",WEEKNUM(CalendarDay),\"/يوم \",CalendarDay-DATE(YEAR(CalendarDay),1,0)),CONCATENATE(\"يوم \",CalendarDay-DATE(YEAR(CalendarDay),1,0)))","v":"أسبوع 19/يوم 126"},{"$f":"IF(WEEKDAY(CalendarDay)=WeekStartValue,CONCATENATE(\"أسبوع \",WEEKNUM(CalendarDay),\"/يوم \",CalendarDay-DATE(YEAR(CalendarDay),1,0)),CONCATENATE(\"يوم \",CalendarDay-DATE(YEAR(CalendarDay),1,0)))","v":"يوم 127"},{"$f":"IF(WEEKDAY(CalendarDay)=WeekStartValue,CONCATENATE(\"أسبوع \",WEEKNUM(CalendarDay),\"/يوم \",CalendarDay-DATE(YEAR(CalendarDay),1,0)),CONCATENATE(\"يوم \",CalendarDay-DATE(YEAR(CalendarDay),1,0)))","v":"يوم 128"},{"$f":"IF(WEEKDAY(CalendarDay)=WeekStartValue,CONCATENATE(\"أسبوع \",WEEKNUM(CalendarDay),\"/يوم \",CalendarDay-DATE(YEAR(CalendarDay),1,0)),CONCATENATE(\"يوم \",CalendarDay-DATE(YEAR(CalendarDay),1,0)))","v":"يوم 129"},{"$f":"IF(WEEKDAY(CalendarDay)=WeekStartValue,CONCATENATE(\"أسبوع \",WEEKNUM(CalendarDay),\"/يوم \",CalendarDay-DATE(YEAR(CalendarDay),1,0)),CONCATENATE(\"يوم \",CalendarDay-DATE(YEAR(CalendarDay),1,0)))","v":"يوم 130"},{"$f":"IF(WEEKDAY(CalendarDay)=WeekStartValue,CONCATENATE(\"أسبوع \",WEEKNUM(CalendarDay),\"/يوم \",CalendarDay-DATE(YEAR(CalendarDay),1,0)),CONCATENATE(\"يوم \",CalendarDay-DATE(YEAR(CalendarDay),1,0)))","v":"يوم 131"},{"$f":"IF(WEEKDAY(CalendarDay)=WeekStartValue,CONCATENATE(\"أسبوع \",WEEKNUM(CalendarDay),\"/يوم \",CalendarDay-DATE(YEAR(CalendarDay),1,0)),CONCATENATE(\"يوم \",CalendarDay-DATE(YEAR(CalendarDay),1,0)))","v":"يوم 132"}]
[]
[null,null,{"$f":"DaysAndWeeks+DATE(CalendarYear,5,1)-WEEKDAY(DATE(CalendarYear,5,1),(WeekStart=\"الإثنين\")+1)+15","v":"2018-05-13"},"2018-05-14","2018-05-15","2018-05-16","2018-05-17","2018-05-18","2018-05-19"]
[null,null,{"$f":"IF(WEEKDAY(CalendarDay)=WeekStartValue,CONCATENATE(\"أسبوع \",WEEKNUM(CalendarDay),\"/يوم \",CalendarDay-DATE(YEAR(CalendarDay),1,0)),CONCATENATE(\"يوم \",CalendarDay-DATE(YEAR(CalendarDay),1,0)))","v":"أسبوع 20/يوم 133"},{"$f":"IF(WEEKDAY(CalendarDay)=WeekStartValue,CONCATENATE(\"أسبوع \",WEEKNUM(CalendarDay),\"/يوم \",CalendarDay-DATE(YEAR(CalendarDay),1,0)),CONCATENATE(\"يوم \",CalendarDay-DATE(YEAR(CalendarDay),1,0)))","v":"يوم 134"},{"$f":"IF(WEEKDAY(CalendarDay)=WeekStartValue,CONCATENATE(\"أسبوع \",WEEKNUM(CalendarDay),\"/يوم \",CalendarDay-DATE(YEAR(CalendarDay),1,0)),CONCATENATE(\"يوم \",CalendarDay-DATE(YEAR(CalendarDay),1,0)))","v":"يوم 135"},{"$f":"IF(WEEKDAY(CalendarDay)=WeekStartValue,CONCATENATE(\"أسبوع \",WEEKNUM(CalendarDay),\"/يوم \",CalendarDay-DATE(YEAR(CalendarDay),1,0)),CONCATENATE(\"يوم \",CalendarDay-DATE(YEAR(CalendarDay),1,0)))","v":"يوم 136"},{"$f":"IF(WEEKDAY(CalendarDay)=WeekStartValue,CONCATENATE(\"أسبوع \",WEEKNUM(CalendarDay),\"/يوم \",CalendarDay-DATE(YEAR(CalendarDay),1,0)),CONCATENATE(\"يوم \",CalendarDay-DATE(YEAR(CalendarDay),1,0)))","v":"يوم 137"},{"$f":"IF(WEEKDAY(CalendarDay)=WeekStartValue,CONCATENATE(\"أسبوع \",WEEKNUM(CalendarDay),\"/يوم \",CalendarDay-DATE(YEAR(CalendarDay),1,0)),CONCATENATE(\"يوم \",CalendarDay-DATE(YEAR(CalendarDay),1,0)))","v":"يوم 138"},{"$f":"IF(WEEKDAY(CalendarDay)=WeekStartValue,CONCATENATE(\"أسبوع \",WEEKNUM(CalendarDay),\"/يوم \",CalendarDay-DATE(YEAR(CalendarDay),1,0)),CONCATENATE(\"يوم \",CalendarDay-DATE(YEAR(CalendarDay),1,0)))","v":"يوم 139"}]
[]
[null,null,{"$f":"DaysAndWeeks+DATE(CalendarYear,5,1)-WEEKDAY(DATE(CalendarYear,5,1),(WeekStart=\"الإثنين\")+1)+22","v":"2018-05-20"},"2018-05-21","2018-05-22","2018-05-23","2018-05-24","2018-05-25","2018-05-26"]
[null,null,{"$f":"IF(WEEKDAY(CalendarDay)=WeekStartValue,CONCATENATE(\"أسبوع \",WEEKNUM(CalendarDay),\"/يوم \",CalendarDay-DATE(YEAR(CalendarDay),1,0)),CONCATENATE(\"يوم \",CalendarDay-DATE(YEAR(CalendarDay),1,0)))","v":"أسبوع 21/يوم 140"},{"$f":"IF(WEEKDAY(CalendarDay)=WeekStartValue,CONCATENATE(\"أسبوع \",WEEKNUM(CalendarDay),\"/يوم \",CalendarDay-DATE(YEAR(CalendarDay),1,0)),CONCATENATE(\"يوم \",CalendarDay-DATE(YEAR(CalendarDay),1,0)))","v":"يوم 141"},{"$f":"IF(WEEKDAY(CalendarDay)=WeekStartValue,CONCATENATE(\"أسبوع \",WEEKNUM(CalendarDay),\"/يوم \",CalendarDay-DATE(YEAR(CalendarDay),1,0)),CONCATENATE(\"يوم \",CalendarDay-DATE(YEAR(CalendarDay),1,0)))","v":"يوم 142"},{"$f":"IF(WEEKDAY(CalendarDay)=WeekStartValue,CONCATENATE(\"أسبوع \",WEEKNUM(CalendarDay),\"/يوم \",CalendarDay-DATE(YEAR(CalendarDay),1,0)),CONCATENATE(\"يوم \",CalendarDay-DATE(YEAR(CalendarDay),1,0)))","v":"يوم 143"},{"$f":"IF(WEEKDAY(CalendarDay)=WeekStartValue,CONCATENATE(\"أسبوع \",WEEKNUM(CalendarDay),\"/يوم \",CalendarDay-DATE(YEAR(CalendarDay),1,0)),CONCATENATE(\"يوم \",CalendarDay-DATE(YEAR(CalendarDay),1,0)))","v":"يوم 144"},{"$f":"IF(WEEKDAY(CalendarDay)=WeekStartValue,CONCATENATE(\"أسبوع \",WEEKNUM(CalendarDay),\"/يوم \",CalendarDay-DATE(YEAR(CalendarDay),1,0)),CONCATENATE(\"يوم \",CalendarDay-DATE(YEAR(CalendarDay),1,0)))","v":"يوم 145"},{"$f":"IF(WEEKDAY(CalendarDay)=WeekStartValue,CONCATENATE(\"أسبوع \",WEEKNUM(CalendarDay),\"/يوم \",CalendarDay-DATE(YEAR(CalendarDay),1,0)),CONCATENATE(\"يوم \",CalendarDay-DATE(YEAR(CalendarDay),1,0)))","v":"يوم 146"}]
[]
[null,null,{"$f":"DaysAndWeeks+DATE(CalendarYear,5,1)-WEEKDAY(DATE(CalendarYear,5,1),(WeekStart=\"الإثنين\")+1)+29","v":"2018-05-27"},"2018-05-28","2018-05-29","2018-05-30","2018-05-31","2018-06-01","2018-06-02"]
[null,null,{"$f":"IF(WEEKDAY(CalendarDay)=WeekStartValue,CONCATENATE(\"أسبوع \",WEEKNUM(CalendarDay),\"/يوم \",CalendarDay-DATE(YEAR(CalendarDay),1,0)),CONCATENATE(\"يوم \",CalendarDay-DATE(YEAR(CalendarDay),1,0)))","v":"أسبوع 22/يوم 147"},{"$f":"IF(WEEKDAY(CalendarDay)=WeekStartValue,CONCATENATE(\"أسبوع \",WEEKNUM(CalendarDay),\"/يوم \",CalendarDay-DATE(YEAR(CalendarDay),1,0)),CONCATENATE(\"يوم \",CalendarDay-DATE(YEAR(CalendarDay),1,0)))","v":"يوم 148"},{"$f":"IF(WEEKDAY(CalendarDay)=WeekStartValue,CONCATENATE(\"أسبوع \",WEEKNUM(CalendarDay),\"/يوم \",CalendarDay-DATE(YEAR(CalendarDay),1,0)),CONCATENATE(\"يوم \",CalendarDay-DATE(YEAR(CalendarDay),1,0)))","v":"يوم 149"},{"$f":"IF(WEEKDAY(CalendarDay)=WeekStartValue,CONCATENATE(\"أسبوع \",WEEKNUM(CalendarDay),\"/يوم \",CalendarDay-DATE(YEAR(CalendarDay),1,0)),CONCATENATE(\"يوم \",CalendarDay-DATE(YEAR(CalendarDay),1,0)))","v":"يوم 150"},{"$f":"IF(WEEKDAY(CalendarDay)=WeekStartValue,CONCATENATE(\"أسبوع \",WEEKNUM(CalendarDay),\"/يوم \",CalendarDay-DATE(YEAR(CalendarDay),1,0)),CONCATENATE(\"يوم \",CalendarDay-DATE(YEAR(CalendarDay),1,0)))","v":"يوم 151"},{"$f":"IF(WEEKDAY(CalendarDay)=WeekStartValue,CONCATENATE(\"أسبوع \",WEEKNUM(CalendarDay),\"/يوم \",CalendarDay-DATE(YEAR(CalendarDay),1,0)),CONCATENATE(\"يوم \",CalendarDay-DATE(YEAR(CalendarDay),1,0)))","v":"يوم 152"},{"$f":"IF(WEEKDAY(CalendarDay)=WeekStartValue,CONCATENATE(\"أسبوع \",WEEKNUM(CalendarDay),\"/يوم \",CalendarDay-DATE(YEAR(CalendarDay),1,0)),CONCATENATE(\"يوم \",CalendarDay-DATE(YEAR(CalendarDay),1,0)))","v":"يوم 153"}]
[{"$nulls":4},"الملاحظات"]
[]
[null,null,{"$f":"DaysAndWeeks+DATE(CalendarYear,5,1)-WEEKDAY(DATE(CalendarYear,5,1),(WeekStart=\"الإثنين\")+1)+36","v":"2018-06-03"},"2018-06-04"]
[null,null,{"$f":"IF(WEEKDAY(CalendarDay)=WeekStartValue,CONCATENATE(\"أسبوع \",WEEKNUM(CalendarDay),\"/يوم \",CalendarDay-DATE(YEAR(CalendarDay),1,0)),CONCATENATE(\"يوم \",CalendarDay-DATE(YEAR(CalendarDay),1,0)))","v":"أسبوع 23/يوم 154"},{"$f":"IF(WEEKDAY(CalendarDay)=WeekStartValue,CONCATENATE(\"أسبوع \",WEEKNUM(CalendarDay),\"/يوم \",CalendarDay-DATE(YEAR(CalendarDay),1,0)),CONCATENATE(\"يوم \",CalendarDay-DATE(YEAR(CalendarDay),1,0)))","v":"يوم 155"}]

{"sheet":"يونيو","index":5,"n_rows":20,"n_cols":9,"rows_kept":20,"merged":[[16,2,17,2],[17,4,19,8]]}
[null,"يونيو",{"$f":"UPPER(TEXT(WeekStart,\"ddd\"))","v":"الأحد"},{"$f":"UPPER(TEXT(D3,\"aaa\"))","v":"الإثنين"},"الثلاثاء","الأربعاء","الخميس","الجمعة","السبت"]
[null,{"$f":"CalendarYear","v":2018}]
[null,null,{"$f":"DaysAndWeeks+DATE(CalendarYear,6,1)-WEEKDAY(DATE(CalendarYear,6,1),(WeekStart=\"الإثنين\")+1)+1","v":"2018-05-27"},"2018-05-28","2018-05-29","2018-05-30","2018-05-31","2018-06-01","2018-06-02"]
[null,null,{"$f":"IF(DAY(CalendarDay)=1,CONCATENATE(\"أسبوع \",WEEKNUM(CalendarDay),\"/يوم \",CalendarDay-DATE(YEAR(CalendarDay),1,0)),CONCATENATE(\"يوم \",CalendarDay-DATE(YEAR(CalendarDay),1,0)))","v":"يوم 147"},"يوم 148","يوم 149","يوم 150","يوم 151","أسبوع 22/يوم 152","يوم 153"]
[]
[null,null,{"$f":"DaysAndWeeks+DATE(CalendarYear,6,1)-WEEKDAY(DATE(CalendarYear,6,1),(WeekStart=\"الإثنين\")+1)+8","v":"2018-06-03"},"2018-06-04","2018-06-05","2018-06-06","2018-06-07","2018-06-08","2018-06-09"]
[null,null,{"$f":"IF(WEEKDAY(CalendarDay)=WeekStartValue,CONCATENATE(\"أسبوع \",WEEKNUM(CalendarDay),\"/يوم \",CalendarDay-DATE(YEAR(CalendarDay),1,0)),CONCATENATE(\"يوم \",CalendarDay-DATE(YEAR(CalendarDay),1,0)))","v":"أسبوع 23/يوم 154"},{"$f":"IF(WEEKDAY(CalendarDay)=WeekStartValue,CONCATENATE(\"أسبوع \",WEEKNUM(CalendarDay),\"/يوم \",CalendarDay-DATE(YEAR(CalendarDay),1,0)),CONCATENATE(\"يوم \",CalendarDay-DATE(YEAR(CalendarDay),1,0)))","v":"يوم 155"},{"$f":"IF(WEEKDAY(CalendarDay)=WeekStartValue,CONCATENATE(\"أسبوع \",WEEKNUM(CalendarDay),\"/يوم \",CalendarDay-DATE(YEAR(CalendarDay),1,0)),CONCATENATE(\"يوم \",CalendarDay-DATE(YEAR(CalendarDay),1,0)))","v":"يوم 156"},{"$f":"IF(WEEKDAY(CalendarDay)=WeekStartValue,CONCATENATE(\"أسبوع \",WEEKNUM(CalendarDay),\"/يوم \",CalendarDay-DATE(YEAR(CalendarDay),1,0)),CONCATENATE(\"يوم \",CalendarDay-DATE(YEAR(CalendarDay),1,0)))","v":"يوم 157"},{"$f":"IF(WEEKDAY(CalendarDay)=WeekStartValue,CONCATENATE(\"أسبوع \",WEEKNUM(CalendarDay),\"/يوم \",CalendarDay-DATE(YEAR(CalendarDay),1,0)),CONCATENATE(\"يوم \",CalendarDay-DATE(YEAR(CalendarDay),1,0)))","v":"يوم 158"},{"$f":"IF(WEEKDAY(CalendarDay)=WeekStartValue,CONCATENATE(\"أسبوع \",WEEKNUM(CalendarDay),\"/يوم \",CalendarDay-DATE(YEAR(CalendarDay),1,0)),CONCATENATE(\"يوم \",CalendarDay-DATE(YEAR(CalendarDay),1,0)))","v":"يوم 159"},{"$f":"IF(WEEKDAY(CalendarDay)=WeekStartValue,CONCATENATE(\"أسبوع \",WEEKNUM(CalendarDay),\"/يوم \",CalendarDay-DATE(YEAR(CalendarDay),1,0)),CONCATENATE(\"يوم \",CalendarDay-DATE(YEAR(CalendarDay),1,0)))","v":"يوم 160"}]
[]
[null,null,{"$f":"DaysAndWeeks+DATE(CalendarYear,6,1)-WEEKDAY(DATE(CalendarYear,6,1),(WeekStart=\"الإثنين\")+1)+15","v":"2018-06-10"},"2018-06-11","2018-06-12","2018-06-13","2018-06-14","2018-06-15","2018-06-16"]
[null,null,{"$f":"IF(WEEKDAY(CalendarDay)=WeekStartValue,CONCATENATE(\"أسبوع \",WEEKNUM(CalendarDay),\"/يوم \",CalendarDay-DATE(YEAR(CalendarDay),1,0)),CONCATENATE(\"يوم \",CalendarDay-DATE(YEAR(CalendarDay),1,0)))","v":"أسبوع 24/يوم 161"},{"$f":"IF(WEEKDAY(CalendarDay)=WeekStartValue,CONCATENATE(\"أسبوع \",WEEKNUM(CalendarDay),\"/يوم \",CalendarDay-DATE(YEAR(CalendarDay),1,0)),CONCATENATE(\"يوم \",CalendarDay-DATE(YEAR(CalendarDay),1,0)))","v":"يوم 162"},{"$f":"IF(WEEKDAY(CalendarDay)=WeekStartValue,CONCATENATE(\"أسبوع \",WEEKNUM(CalendarDay),\"/يوم \",CalendarDay-DATE(YEAR(CalendarDay),1,0)),CONCATENATE(\"يوم \",CalendarDay-DATE(YEAR(CalendarDay),1,0)))","v":"يوم 163"},{"$f":"IF(WEEKDAY(CalendarDay)=WeekStartValue,CONCATENATE(\"أسبوع \",WEEKNUM(CalendarDay),\"/يوم \",CalendarDay-DATE(YEAR(CalendarDay),1,0)),CONCATENATE(\"يوم \",CalendarDay-DATE(YEAR(CalendarDay),1,0)))","v":"يوم 164"},{"$f":"IF(WEEKDAY(CalendarDay)=WeekStartValue,CONCATENATE(\"أسبوع \",WEEKNUM(CalendarDay),\"/يوم \",CalendarDay-DATE(YEAR(CalendarDay),1,0)),CONCATENATE(\"يوم \",CalendarDay-DATE(YEAR(CalendarDay),1,0)))","v":"يوم 165"},{"$f":"IF(WEEKDAY(CalendarDay)=WeekStartValue,CONCATENATE(\"أسبوع \",WEEKNUM(CalendarDay),\"/يوم \",CalendarDay-DATE(YEAR(CalendarDay),1,0)),CONCATENATE(\"يوم \",CalendarDay-DATE(YEAR(CalendarDay),1,0)))","v":"يوم 166"},{"$f":"IF(WEEKDAY(CalendarDay)=WeekStartValue,CONCATENATE(\"أسبوع \",WEEKNUM(CalendarDay),\"/يوم \",CalendarDay-DATE(YEAR(CalendarDay),1,0)),CONCATENATE(\"يوم \",CalendarDay-DATE(YEAR(CalendarDay),1,0)))","v":"يوم 167"}]
[]
[null,null,{"$f":"DaysAndWeeks+DATE(CalendarYear,6,1)-WEEKDAY(DATE(CalendarYear,6,1),(WeekStart=\"الإثنين\")+1)+22","v":"2018-06-17"},"2018-06-18","2018-06-19","2018-06-20","2018-06-21","2018-06-22","2018-06-23"]
[null,null,{"$f":"IF(WEEKDAY(CalendarDay)=WeekStartValue,CONCATENATE(\"أسبوع \",WEEKNUM(CalendarDay),\"/يوم \",CalendarDay-DATE(YEAR(CalendarDay),1,0)),CONCATENATE(\"يوم \",CalendarDay-DATE(YEAR(CalendarDay),1,0)))","v":"أسبوع 25/يوم 168"},{"$f":"IF(WEEKDAY(CalendarDay)=WeekStartValue,CONCATENATE(\"أسبوع \",WEEKNUM(CalendarDay),\"/يوم \",CalendarDay-DATE(YEAR(CalendarDay),1,0)),CONCATENATE(\"يوم \",CalendarDay-DATE(YEAR(CalendarDay),1,0)))","v":"يوم 169"},{"$f":"IF(WEEKDAY(CalendarDay)=WeekStartValue,CONCATENATE(\"أسبوع \",WEEKNUM(CalendarDay),\"/يوم \",CalendarDay-DATE(YEAR(CalendarDay),1,0)),CONCATENATE(\"يوم \",CalendarDay-DATE(YEAR(CalendarDay),1,0)))","v":"يوم 170"},{"$f":"IF(WEEKDAY(CalendarDay)=WeekStartValue,CONCATENATE(\"أسبوع \",WEEKNUM(CalendarDay),\"/يوم \",CalendarDay-DATE(YEAR(CalendarDay),1,0)),CONCATENATE(\"يوم \",CalendarDay-DATE(YEAR(CalendarDay),1,0)))","v":"يوم 171"},{"$f":"IF(WEEKDAY(CalendarDay)=WeekStartValue,CONCATENATE(\"أسبوع \",WEEKNUM(CalendarDay),\"/يوم \",CalendarDay-DATE(YEAR(CalendarDay),1,0)),CONCATENATE(\"يوم \",CalendarDay-DATE(YEAR(CalendarDay),1,0)))","v":"يوم 172"},{"$f":"IF(WEEKDAY(CalendarDay)=WeekStartValue,CONCATENATE(\"أسبوع \",WEEKNUM(CalendarDay),\"/يوم \",CalendarDay-DATE(YEAR(CalendarDay),1,0)),CONCATENATE(\"يوم \",CalendarDay-DATE(YEAR(CalendarDay),1,0)))","v":"يوم 173"},{"$f":"IF(WEEKDAY(CalendarDay)=WeekStartValue,CONCATENATE(\"أسبوع \",WEEKNUM(CalendarDay),\"/يوم \",CalendarDay-DATE(YEAR(CalendarDay),1,0)),CONCATENATE(\"يوم \",CalendarDay-DATE(YEAR(CalendarDay),1,0)))","v":"يوم 174"}]
[]
[null,null,{"$f":"DaysAndWeeks+DATE(CalendarYear,6,1)-WEEKDAY(DATE(CalendarYear,6,1),(WeekStart=\"الإثنين\")+1)+29","v":"2018-06-24"},"2018-06-25","2018-06-26","2018-06-27","2018-06-28","2018-06-29","2018-06-30"]
[null,null,{"$f":"IF(WEEKDAY(CalendarDay)=WeekStartValue,CONCATENATE(\"أسبوع \",WEEKNUM(CalendarDay),\"/يوم \",CalendarDay-DATE(YEAR(CalendarDay),1,0)),CONCATENATE(\"يوم \",CalendarDay-DATE(YEAR(CalendarDay),1,0)))","v":"أسبوع 26/يوم 175"},{"$f":"IF(WEEKDAY(CalendarDay)=WeekStartValue,CONCATENATE(\"أسبوع \",WEEKNUM(CalendarDay),\"/يوم \",CalendarDay-DATE(YEAR(CalendarDay),1,0)),CONCATENATE(\"يوم \",CalendarDay-DATE(YEAR(CalendarDay),1,0)))","v":"يوم 176"},{"$f":"IF(WEEKDAY(CalendarDay)=WeekStartValue,CONCATENATE(\"أسبوع \",WEEKNUM(CalendarDay),\"/يوم \",CalendarDay-DATE(YEAR(CalendarDay),1,0)),CONCATENATE(\"يوم \",CalendarDay-DATE(YEAR(CalendarDay),1,0)))","v":"يوم 177"},{"$f":"IF(WEEKDAY(CalendarDay)=WeekStartValue,CONCATENATE(\"أسبوع \",WEEKNUM(CalendarDay),\"/يوم \",CalendarDay-DATE(YEAR(CalendarDay),1,0)),CONCATENATE(\"يوم \",CalendarDay-DATE(YEAR(CalendarDay),1,0)))","v":"يوم 178"},{"$f":"IF(WEEKDAY(CalendarDay)=WeekStartValue,CONCATENATE(\"أسبوع \",WEEKNUM(CalendarDay),\"/يوم \",CalendarDay-DATE(YEAR(CalendarDay),1,0)),CONCATENATE(\"يوم \",CalendarDay-DATE(YEAR(CalendarDay),1,0)))","v":"يوم 179"},{"$f":"IF(WEEKDAY(CalendarDay)=WeekStartValue,CONCATENATE(\"أسبوع \",WEEKNUM(CalendarDay),\"/يوم \",CalendarDay-DATE(YEAR(CalendarDay),1,0)),CONCATENATE(\"يوم \",CalendarDay-DATE(YEAR(CalendarDay),1,0)))","v":"يوم 180"},{"$f":"IF(WEEKDAY(CalendarDay)=WeekStartValue,CONCATENATE(\"أسبوع \",WEEKNUM(CalendarDay),\"/يوم \",CalendarDay-DATE(YEAR(CalendarDay),1,0)),CONCATENATE(\"يوم \",CalendarDay-DATE(YEAR(CalendarDay),1,0)))","v":"يوم 181"}]
[{"$nulls":4},"الملاحظات"]
[]
[null,null,{"$f":"DaysAndWeeks+DATE(CalendarYear,6,1)-WEEKDAY(DATE(CalendarYear,6,1),(WeekStart=\"الإثنين\")+1)+36","v":"2018-07-01"},"2018-07-02"]
[null,null,{"$f":"IF(WEEKDAY(CalendarDay)=WeekStartValue,CONCATENATE(\"أسبوع \",WEEKNUM(CalendarDay),\"/يوم \",CalendarDay-DATE(YEAR(CalendarDay),1,0)),CONCATENATE(\"يوم \",CalendarDay-DATE(YEAR(CalendarDay),1,0)))","v":"أسبوع 27/يوم 182"},{"$f":"IF(WEEKDAY(CalendarDay)=WeekStartValue,CONCATENATE(\"أسبوع \",WEEKNUM(CalendarDay),\"/يوم \",CalendarDay-DATE(YEAR(CalendarDay),1,0)),CONCATENATE(\"يوم \",CalendarDay-DATE(YEAR(CalendarDay),1,0)))","v":"يوم 183"}]

{"sheet":"يوليو","index":6,"n_rows":20,"n_cols":9,"rows_kept":20,"merged":[[16,2,17,2],[17,4,19,8]]}
[null,"يوليو",{"$f":"UPPER(TEXT(WeekStart,\"ddd\"))","v":"الأحد"},{"$f":"UPPER(TEXT(D3,\"aaa\"))","v":"الإثنين"},"الثلاثاء","الأربعاء","الخميس","الجمعة","السبت"]
[null,{"$f":"CalendarYear","v":2018}]
[null,null,{"$f":"DaysAndWeeks+DATE(CalendarYear,7,1)-WEEKDAY(DATE(CalendarYear,7,1),(WeekStart=\"الإثنين\")+1)+1","v":"2018-07-01"},"2018-07-02","2018-07-03","2018-07-04","2018-07-05","2018-07-06","2018-07-07"]
[null,null,{"$f":"IF(DAY(CalendarDay)=1,CONCATENATE(\"أسبوع \",WEEKNUM(CalendarDay),\"/يوم \",CalendarDay-DATE(YEAR(CalendarDay),1,0)),CONCATENATE(\"يوم \",CalendarDay-DATE(YEAR(CalendarDay),1,0)))","v":"أسبوع 27/يوم 182"},"يوم 183","يوم 184","يوم 185","يوم 186","يوم 187","يوم 188"]
[]
[null,null,{"$f":"DaysAndWeeks+DATE(CalendarYear,7,1)-WEEKDAY(DATE(CalendarYear,7,1),(WeekStart=\"الإثنين\")+1)+8","v":"2018-07-08"},"2018-07-09","2018-07-10","2018-07-11","2018-07-12","2018-07-13","2018-07-14"]
[null,null,{"$f":"IF(WEEKDAY(CalendarDay)=WeekStartValue,CONCATENATE(\"أسبوع \",WEEKNUM(CalendarDay),\"/يوم \",CalendarDay-DATE(YEAR(CalendarDay),1,0)),CONCATENATE(\"يوم \",CalendarDay-DATE(YEAR(CalendarDay),1,0)))","v":"أسبوع 28/يوم 189"},{"$f":"IF(WEEKDAY(CalendarDay)=WeekStartValue,CONCATENATE(\"أسبوع \",WEEKNUM(CalendarDay),\"/يوم \",CalendarDay-DATE(YEAR(CalendarDay),1,0)),CONCATENATE(\"يوم \",CalendarDay-DATE(YEAR(CalendarDay),1,0)))","v":"يوم 190"},{"$f":"IF(WEEKDAY(CalendarDay)=WeekStartValue,CONCATENATE(\"أسبوع \",WEEKNUM(CalendarDay),\"/يوم \",CalendarDay-DATE(YEAR(CalendarDay),1,0)),CONCATENATE(\"يوم \",CalendarDay-DATE(YEAR(CalendarDay),1,0)))","v":"يوم 191"},{"$f":"IF(WEEKDAY(CalendarDay)=WeekStartValue,CONCATENATE(\"أسبوع \",WEEKNUM(CalendarDay),\"/يوم \",CalendarDay-DATE(YEAR(CalendarDay),1,0)),CONCATENATE(\"يوم \",CalendarDay-DATE(YEAR(CalendarDay),1,0)))","v":"يوم 192"},{"$f":"IF(WEEKDAY(CalendarDay)=WeekStartValue,CONCATENATE(\"أسبوع \",WEEKNUM(CalendarDay),\"/يوم \",CalendarDay-DATE(YEAR(CalendarDay),1,0)),CONCATENATE(\"يوم \",CalendarDay-DATE(YEAR(CalendarDay),1,0)))","v":"يوم 193"},{"$f":"IF(WEEKDAY(CalendarDay)=WeekStartValue,CONCATENATE(\"أسبوع \",WEEKNUM(CalendarDay),\"/يوم \",CalendarDay-DATE(YEAR(CalendarDay),1,0)),CONCATENATE(\"يوم \",CalendarDay-DATE(YEAR(CalendarDay),1,0)))","v":"يوم 194"},{"$f":"IF(WEEKDAY(CalendarDay)=WeekStartValue,CONCATENATE(\"أسبوع \",WEEKNUM(CalendarDay),\"/يوم \",CalendarDay-DATE(YEAR(CalendarDay),1,0)),CONCATENATE(\"يوم \",CalendarDay-DATE(YEAR(CalendarDay),1,0)))","v":"يوم 195"}]
[]
[null,null,{"$f":"DaysAndWeeks+DATE(CalendarYear,7,1)-WEEKDAY(DATE(CalendarYear,7,1),(WeekStart=\"الإثنين\")+1)+15","v":"2018-07-15"},"2018-07-16","2018-07-17","2018-07-18","2018-07-19","2018-07-20","2018-07-21"]
[null,null,{"$f":"IF(WEEKDAY(CalendarDay)=WeekStartValue,CONCATENATE(\"أسبوع \",WEEKNUM(CalendarDay),\"/يوم \",CalendarDay-DATE(YEAR(CalendarDay),1,0)),CONCATENATE(\"يوم \",CalendarDay-DATE(YEAR(CalendarDay),1,0)))","v":"أسبوع 29/يوم 196"},{"$f":"IF(WEEKDAY(CalendarDay)=WeekStartValue,CONCATENATE(\"أسبوع \",WEEKNUM(CalendarDay),\"/يوم \",CalendarDay-DATE(YEAR(CalendarDay),1,0)),CONCATENATE(\"يوم \",CalendarDay-DATE(YEAR(CalendarDay),1,0)))","v":"يوم 197"},{"$f":"IF(WEEKDAY(CalendarDay)=WeekStartValue,CONCATENATE(\"أسبوع \",WEEKNUM(CalendarDay),\"/يوم \",CalendarDay-DATE(YEAR(CalendarDay),1,0)),CONCATENATE(\"يوم \",CalendarDay-DATE(YEAR(CalendarDay),1,0)))","v":"يوم 198"},{"$f":"IF(WEEKDAY(CalendarDay)=WeekStartValue,CONCATENATE(\"أسبوع \",WEEKNUM(CalendarDay),\"/يوم \",CalendarDay-DATE(YEAR(CalendarDay),1,0)),CONCATENATE(\"يوم \",CalendarDay-DATE(YEAR(CalendarDay),1,0)))","v":"يوم 199"},{"$f":"IF(WEEKDAY(CalendarDay)=WeekStartValue,CONCATENATE(\"أسبوع \",WEEKNUM(CalendarDay),\"/يوم \",CalendarDay-DATE(YEAR(CalendarDay),1,0)),CONCATENATE(\"يوم \",CalendarDay-DATE(YEAR(CalendarDay),1,0)))","v":"يوم 200"},{"$f":"IF(WEEKDAY(CalendarDay)=WeekStartValue,CONCATENATE(\"أسبوع \",WEEKNUM(CalendarDay),\"/يوم \",CalendarDay-DATE(YEAR(CalendarDay),1,0)),CONCATENATE(\"يوم \",CalendarDay-DATE(YEAR(CalendarDay),1,0)))","v":"يوم 201"},{"$f":"IF(WEEKDAY(CalendarDay)=WeekStartValue,CONCATENATE(\"أسبوع \",WEEKNUM(CalendarDay),\"/يوم \",CalendarDay-DATE(YEAR(CalendarDay),1,0)),CONCATENATE(\"يوم \",CalendarDay-DATE(YEAR(CalendarDay),1,0)))","v":"يوم 202"}]
[]
[null,null,{"$f":"DaysAndWeeks+DATE(CalendarYear,7,1)-WEEKDAY(DATE(CalendarYear,7,1),(WeekStart=\"الإثنين\")+1)+22","v":"2018-07-22"},"2018-07-23","2018-07-24","2018-07-25","2018-07-26","2018-07-27","2018-07-28"]
[null,null,{"$f":"IF(WEEKDAY(CalendarDay)=WeekStartValue,CONCATENATE(\"أسبوع \",WEEKNUM(CalendarDay),\"/يوم \",CalendarDay-DATE(YEAR(CalendarDay),1,0)),CONCATENATE(\"يوم \",CalendarDay-DATE(YEAR(CalendarDay),1,0)))","v":"أسبوع 30/يوم 203"},{"$f":"IF(WEEKDAY(CalendarDay)=WeekStartValue,CONCATENATE(\"أسبوع \",WEEKNUM(CalendarDay),\"/يوم \",CalendarDay-DATE(YEAR(CalendarDay),1,0)),CONCATENATE(\"يوم \",CalendarDay-DATE(YEAR(CalendarDay),1,0)))","v":"يوم 204"},{"$f":"IF(WEEKDAY(CalendarDay)=WeekStartValue,CONCATENATE(\"أسبوع \",WEEKNUM(CalendarDay),\"/يوم \",CalendarDay-DATE(YEAR(CalendarDay),1,0)),CONCATENATE(\"يوم \",CalendarDay-DATE(YEAR(CalendarDay),1,0)))","v":"يوم 205"},{"$f":"IF(WEEKDAY(CalendarDay)=WeekStartValue,CONCATENATE(\"أسبوع \",WEEKNUM(CalendarDay),\"/يوم \",CalendarDay-DATE(YEAR(CalendarDay),1,0)),CONCATENATE(\"يوم \",CalendarDay-DATE(YEAR(CalendarDay),1,0)))","v":"يوم 206"},{"$f":"IF(WEEKDAY(CalendarDay)=WeekStartValue,CONCATENATE(\"أسبوع \",WEEKNUM(CalendarDay),\"/يوم \",CalendarDay-DATE(YEAR(CalendarDay),1,0)),CONCATENATE(\"يوم \",CalendarDay-DATE(YEAR(CalendarDay),1,0)))","v":"يوم 207"},{"$f":"IF(WEEKDAY(CalendarDay)=WeekStartValue,CONCATENATE(\"أسبوع \",WEEKNUM(CalendarDay),\"/يوم \",CalendarDay-DATE(YEAR(CalendarDay),1,0)),CONCATENATE(\"يوم \",CalendarDay-DATE(YEAR(CalendarDay),1,0)))","v":"يوم 208"},{"$f":"IF(WEEKDAY(CalendarDay)=WeekStartValue,CONCATENATE(\"أسبوع \",WEEKNUM(CalendarDay),\"/يوم \",CalendarDay-DATE(YEAR(CalendarDay),1,0)),CONCATENATE(\"يوم \",CalendarDay-DATE(YEAR(CalendarDay),1,0)))","v":"يوم 209"}]
[]
[null,null,{"$f":"DaysAndWeeks+DATE(CalendarYear,7,1)-WEEKDAY(DATE(CalendarYear,7,1),(WeekStart=\"الإثنين\")+1)+29","v":"2018-07-29"},"2018-07-30","2018-07-31","2018-08-01","2018-08-02","2018-08-03","2018-08-04"]
[null,null,{"$f":"IF(WEEKDAY(CalendarDay)=WeekStartValue,CONCATENATE(\"أسبوع \",WEEKNUM(CalendarDay),\"/يوم \",CalendarDay-DATE(YEAR(CalendarDay),1,0)),CONCATENATE(\"يوم \",CalendarDay-DATE(YEAR(CalendarDay),1,0)))","v":"أسبوع 31/يوم 210"},{"$f":"IF(WEEKDAY(CalendarDay)=WeekStartValue,CONCATENATE(\"أسبوع \",WEEKNUM(CalendarDay),\"/يوم \",CalendarDay-DATE(YEAR(CalendarDay),1,0)),CONCATENATE(\"يوم \",CalendarDay-DATE(YEAR(CalendarDay),1,0)))","v":"يوم 211"},{"$f":"IF(WEEKDAY(CalendarDay)=WeekStartValue,CONCATENATE(\"أسبوع \",WEEKNUM(CalendarDay),\"/يوم \",CalendarDay-DATE(YEAR(CalendarDay),1,0)),CONCATENATE(\"يوم \",CalendarDay-DATE(YEAR(CalendarDay),1,0)))","v":"يوم 212"},{"$f":"IF(WEEKDAY(CalendarDay)=WeekStartValue,CONCATENATE(\"أسبوع \",WEEKNUM(CalendarDay),\"/يوم \",CalendarDay-DATE(YEAR(CalendarDay),1,0)),CONCATENATE(\"يوم \",CalendarDay-DATE(YEAR(CalendarDay),1,0)))","v":"يوم 213"},{"$f":"IF(WEEKDAY(CalendarDay)=WeekStartValue,CONCATENATE(\"أسبوع \",WEEKNUM(CalendarDay),\"/يوم \",CalendarDay-DATE(YEAR(CalendarDay),1,0)),CONCATENATE(\"يوم \",CalendarDay-DATE(YEAR(CalendarDay),1,0)))","v":"يوم 214"},{"$f":"IF(WEEKDAY(CalendarDay)=WeekStartValue,CONCATENATE(\"أسبوع \",WEEKNUM(CalendarDay),\"/يوم \",CalendarDay-DATE(YEAR(CalendarDay),1,0)),CONCATENATE(\"يوم \",CalendarDay-DATE(YEAR(CalendarDay),1,0)))","v":"يوم 215"},{"$f":"IF(WEEKDAY(CalendarDay)=WeekStartValue,CONCATENATE(\"أسبوع \",WEEKNUM(CalendarDay),\"/يوم \",CalendarDay-DATE(YEAR(CalendarDay),1,0)),CONCATENATE(\"يوم \",CalendarDay-DATE(YEAR(CalendarDay),1,0)))","v":"يوم 216"}]
[{"$nulls":4},"الملاحظات"]
[]
[null,null,{"$f":"DaysAndWeeks+DATE(CalendarYear,7,1)-WEEKDAY(DATE(CalendarYear,7,1),(WeekStart=\"الإثنين\")+1)+36","v":"2018-08-05"},"2018-08-06"]
[null,null,{"$f":"IF(WEEKDAY(CalendarDay)=WeekStartValue,CONCATENATE(\"أسبوع \",WEEKNUM(CalendarDay),\"/يوم \",CalendarDay-DATE(YEAR(CalendarDay),1,0)),CONCATENATE(\"يوم \",CalendarDay-DATE(YEAR(CalendarDay),1,0)))","v":"أسبوع 32/يوم 217"},{"$f":"IF(WEEKDAY(CalendarDay)=WeekStartValue,CONCATENATE(\"أسبوع \",WEEKNUM(CalendarDay),\"/يوم \",CalendarDay-DATE(YEAR(CalendarDay),1,0)),CONCATENATE(\"يوم \",CalendarDay-DATE(YEAR(CalendarDay),1,0)))","v":"يوم 218"}]

{"sheet":"أغسطس","index":7,"n_rows":20,"n_cols":9,"rows_kept":20,"merged":[[16,2,17,2],[17,4,19,8]]}
[null,"أغسطس",{"$f":"UPPER(TEXT(WeekStart,\"ddd\"))","v":"الأحد"},{"$f":"UPPER(TEXT(D3,\"aaa\"))","v":"الإثنين"},"الثلاثاء","الأربعاء","الخميس","الجمعة","السبت"]
[null,{"$f":"CalendarYear","v":2018}]
[null,null,{"$f":"DaysAndWeeks+DATE(CalendarYear,8,1)-WEEKDAY(DATE(CalendarYear,8,1),(WeekStart=\"الإثنين\")+1)+1","v":"2018-07-29"},"2018-07-30","2018-07-31","2018-08-01","2018-08-02","2018-08-03","2018-08-04"]
[null,null,{"$f":"IF(DAY(CalendarDay)=1,CONCATENATE(\"أسبوع \",WEEKNUM(CalendarDay),\"/يوم \",CalendarDay-DATE(YEAR(CalendarDay),1,0)),CONCATENATE(\"يوم \",CalendarDay-DATE(YEAR(CalendarDay),1,0)))","v":"يوم 210"},"يوم 211","يوم 212","أسبوع 31/يوم 213","يوم 214","يوم 215","يوم 216"]
[]
[null,null,{"$f":"DaysAndWeeks+DATE(CalendarYear,8,1)-WEEKDAY(DATE(CalendarYear,8,1),(WeekStart=\"الإثنين\")+1)+8","v":"2018-08-05"},"2018-08-06","2018-08-07","2018-08-08","2018-08-09","2018-08-10","2018-08-11"]
[null,null,{"$f":"IF(WEEKDAY(CalendarDay)=WeekStartValue,CONCATENATE(\"أسبوع \",WEEKNUM(CalendarDay),\"/يوم \",CalendarDay-DATE(YEAR(CalendarDay),1,0)),CONCATENATE(\"يوم \",CalendarDay-DATE(YEAR(CalendarDay),1,0)))","v":"أسبوع 32/يوم 217"},{"$f":"IF(WEEKDAY(CalendarDay)=WeekStartValue,CONCATENATE(\"أسبوع \",WEEKNUM(CalendarDay),\"/يوم \",CalendarDay-DATE(YEAR(CalendarDay),1,0)),CONCATENATE(\"يوم \",CalendarDay-DATE(YEAR(CalendarDay),1,0)))","v":"يوم 218"},{"$f":"IF(WEEKDAY(CalendarDay)=WeekStartValue,CONCATENATE(\"أسبوع \",WEEKNUM(CalendarDay),\"/يوم \",CalendarDay-DATE(YEAR(CalendarDay),1,0)),CONCATENATE(\"يوم \",CalendarDay-DATE(YEAR(CalendarDay),1,0)))","v":"يوم 219"},{"$f":"IF(WEEKDAY(CalendarDay)=WeekStartValue,CONCATENATE(\"أسبوع \",WEEKNUM(CalendarDay),\"/يوم \",CalendarDay-DATE(YEAR(CalendarDay),1,0)),CONCATENATE(\"يوم \",CalendarDay-DATE(YEAR(CalendarDay),1,0)))","v":"يوم 220"},{"$f":"IF(WEEKDAY(CalendarDay)=WeekStartValue,CONCATENATE(\"أسبوع \",WEEKNUM(CalendarDay),\"/يوم \",CalendarDay-DATE(YEAR(CalendarDay),1,0)),CONCATENATE(\"يوم \",CalendarDay-DATE(YEAR(CalendarDay),1,0)))","v":"يوم 221"},{"$f":"IF(WEEKDAY(CalendarDay)=WeekStartValue,CONCATENATE(\"أسبوع \",WEEKNUM(CalendarDay),\"/يوم \",CalendarDay-DATE(YEAR(CalendarDay),1,0)),CONCATENATE(\"يوم \",CalendarDay-DATE(YEAR(CalendarDay),1,0)))","v":"يوم 222"},{"$f":"IF(WEEKDAY(CalendarDay)=WeekStartValue,CONCATENATE(\"أسبوع \",WEEKNUM(CalendarDay),\"/يوم \",CalendarDay-DATE(YEAR(CalendarDay),1,0)),CONCATENATE(\"يوم \",CalendarDay-DATE(YEAR(CalendarDay),1,0)))","v":"يوم 223"}]
[]
[null,null,{"$f":"DaysAndWeeks+DATE(CalendarYear,8,1)-WEEKDAY(DATE(CalendarYear,8,1),(WeekStart=\"الإثنين\")+1)+15","v":"2018-08-12"},"2018-08-13","2018-08-14","2018-08-15","2018-08-16","2018-08-17","2018-08-18"]
[null,null,{"$f":"IF(WEEKDAY(CalendarDay)=WeekStartValue,CONCATENATE(\"أسبوع \",WEEKNUM(CalendarDay),\"/يوم \",CalendarDay-DATE(YEAR(CalendarDay),1,0)),CONCATENATE(\"يوم \",CalendarDay-DATE(YEAR(CalendarDay),1,0)))","v":"أسبوع 33/يوم 224"},{"$f":"IF(WEEKDAY(CalendarDay)=WeekStartValue,CONCATENATE(\"أسبوع \",WEEKNUM(CalendarDay),\"/يوم \",CalendarDay-DATE(YEAR(CalendarDay),1,0)),CONCATENATE(\"يوم \",CalendarDay-DATE(YEAR(CalendarDay),1,0)))","v":"يوم 225"},{"$f":"IF(WEEKDAY(CalendarDay)=WeekStartValue,CONCATENATE(\"أسبوع \",WEEKNUM(CalendarDay),\"/يوم \",CalendarDay-DATE(YEAR(CalendarDay),1,0)),CONCATENATE(\"يوم \",CalendarDay-DATE(YEAR(CalendarDay),1,0)))","v":"يوم 226"},{"$f":"IF(WEEKDAY(CalendarDay)=WeekStartValue,CONCATENATE(\"أسبوع \",WEEKNUM(CalendarDay),\"/يوم \",CalendarDay-DATE(YEAR(CalendarDay),1,0)),CONCATENATE(\"يوم \",CalendarDay-DATE(YEAR(CalendarDay),1,0)))","v":"يوم 227"},{"$f":"IF(WEEKDAY(CalendarDay)=WeekStartValue,CONCATENATE(\"أسبوع \",WEEKNUM(CalendarDay),\"/يوم \",CalendarDay-DATE(YEAR(CalendarDay),1,0)),CONCATENATE(\"يوم \",CalendarDay-DATE(YEAR(CalendarDay),1,0)))","v":"يوم 228"},{"$f":"IF(WEEKDAY(CalendarDay)=WeekStartValue,CONCATENATE(\"أسبوع \",WEEKNUM(CalendarDay),\"/يوم \",CalendarDay-DATE(YEAR(CalendarDay),1,0)),CONCATENATE(\"يوم \",CalendarDay-DATE(YEAR(CalendarDay),1,0)))","v":"يوم 229"},{"$f":"IF(WEEKDAY(CalendarDay)=WeekStartValue,CONCATENATE(\"أسبوع \",WEEKNUM(CalendarDay),\"/يوم \",CalendarDay-DATE(YEAR(CalendarDay),1,0)),CONCATENATE(\"يوم \",CalendarDay-DATE(YEAR(CalendarDay),1,0)))","v":"يوم 230"}]
[]
[null,null,{"$f":"DaysAndWeeks+DATE(CalendarYear,8,1)-WEEKDAY(DATE(CalendarYear,8,1),(WeekStart=\"الإثنين\")+1)+22","v":"2018-08-19"},"2018-08-20","2018-08-21","2018-08-22","2018-08-23","2018-08-24","2018-08-25"]
[null,null,{"$f":"IF(WEEKDAY(CalendarDay)=WeekStartValue,CONCATENATE(\"أسبوع \",WEEKNUM(CalendarDay),\"/يوم \",CalendarDay-DATE(YEAR(CalendarDay),1,0)),CONCATENATE(\"يوم \",CalendarDay-DATE(YEAR(CalendarDay),1,0)))","v":"أسبوع 34/يوم 231"},{"$f":"IF(WEEKDAY(CalendarDay)=WeekStartValue,CONCATENATE(\"أسبوع \",WEEKNUM(CalendarDay),\"/يوم \",CalendarDay-DATE(YEAR(CalendarDay),1,0)),CONCATENATE(\"يوم \",CalendarDay-DATE(YEAR(CalendarDay),1,0)))","v":"يوم 232"},{"$f":"IF(WEEKDAY(CalendarDay)=WeekStartValue,CONCATENATE(\"أسبوع \",WEEKNUM(CalendarDay),\"/يوم \",CalendarDay-DATE(YEAR(CalendarDay),1,0)),CONCATENATE(\"يوم \",CalendarDay-DATE(YEAR(CalendarDay),1,0)))","v":"يوم 233"},{"$f":"IF(WEEKDAY(CalendarDay)=WeekStartValue,CONCATENATE(\"أسبوع \",WEEKNUM(CalendarDay),\"/يوم \",CalendarDay-DATE(YEAR(CalendarDay),1,0)),CONCATENATE(\"يوم \",CalendarDay-DATE(YEAR(CalendarDay),1,0)))","v":"يوم 234"},{"$f":"IF(WEEKDAY(CalendarDay)=WeekStartValue,CONCATENATE(\"أسبوع \",WEEKNUM(CalendarDay),\"/يوم \",CalendarDay-DATE(YEAR(CalendarDay),1,0)),CONCATENATE(\"يوم \",CalendarDay-DATE(YEAR(CalendarDay),1,0)))","v":"يوم 235"},{"$f":"IF(WEEKDAY(CalendarDay)=WeekStartValue,CONCATENATE(\"أسبوع \",WEEKNUM(CalendarDay),\"/يوم \",CalendarDay-DATE(YEAR(CalendarDay),1,0)),CONCATENATE(\"يوم \",CalendarDay-DATE(YEAR(CalendarDay),1,0)))","v":"يوم 236"},{"$f":"IF(WEEKDAY(CalendarDay)=WeekStartValue,CONCATENATE(\"أسبوع \",WEEKNUM(CalendarDay),\"/يوم \",CalendarDay-DATE(YEAR(CalendarDay),1,0)),CONCATENATE(\"يوم \",CalendarDay-DATE(YEAR(CalendarDay),1,0)))","v":"يوم 237"}]
[]
[null,null,{"$f":"DaysAndWeeks+DATE(CalendarYear,8,1)-WEEKDAY(DATE(CalendarYear,8,1),(WeekStart=\"الإثنين\")+1)+29","v":"2018-08-26"},"2018-08-27","2018-08-28","2018-08-29","2018-08-30","2018-08-31","2018-09-01"]
[null,null,{"$f":"IF(WEEKDAY(CalendarDay)=WeekStartValue,CONCATENATE(\"أسبوع \",WEEKNUM(CalendarDay),\"/يوم \",CalendarDay-DATE(YEAR(CalendarDay),1,0)),CONCATENATE(\"يوم \",CalendarDay-DATE(YEAR(CalendarDay),1,0)))","v":"أسبوع 35/يوم 238"},{"$f":"IF(WEEKDAY(CalendarDay)=WeekStartValue,CONCATENATE(\"أسبوع \",WEEKNUM(CalendarDay),\"/يوم \",CalendarDay-DATE(YEAR(CalendarDay),1,0)),CONCATENATE(\"يوم \",CalendarDay-DATE(YEAR(CalendarDay),1,0)))","v":"يوم 239"},{"$f":"IF(WEEKDAY(CalendarDay)=WeekStartValue,CONCATENATE(\"أسبوع \",WEEKNUM(CalendarDay),\"/يوم \",CalendarDay-DATE(YEAR(CalendarDay),1,0)),CONCATENATE(\"يوم \",CalendarDay-DATE(YEAR(CalendarDay),1,0)))","v":"يوم 240"},{"$f":"IF(WEEKDAY(CalendarDay)=WeekStartValue,CONCATENATE(\"أسبوع \",WEEKNUM(CalendarDay),\"/يوم \",CalendarDay-DATE(YEAR(CalendarDay),1,0)),CONCATENATE(\"يوم \",CalendarDay-DATE(YEAR(CalendarDay),1,0)))","v":"يوم 241"},{"$f":"IF(WEEKDAY(CalendarDay)=WeekStartValue,CONCATENATE(\"أسبوع \",WEEKNUM(CalendarDay),\"/يوم \",CalendarDay-DATE(YEAR(CalendarDay),1,0)),CONCATENATE(\"يوم \",CalendarDay-DATE(YEAR(CalendarDay),1,0)))","v":"يوم 242"},{"$f":"IF(WEEKDAY(CalendarDay)=WeekStartValue,CONCATENATE(\"أسبوع \",WEEKNUM(CalendarDay),\"/يوم \",CalendarDay-DATE(YEAR(CalendarDay),1,0)),CONCATENATE(\"يوم \",CalendarDay-DATE(YEAR(CalendarDay),1,0)))","v":"يوم 243"},{"$f":"IF(WEEKDAY(CalendarDay)=WeekStartValue,CONCATENATE(\"أسبوع \",WEEKNUM(CalendarDay),\"/يوم \",CalendarDay-DATE(YEAR(CalendarDay),1,0)),CONCATENATE(\"يوم \",CalendarDay-DATE(YEAR(CalendarDay),1,0)))","v":"يوم 244"}]
[{"$nulls":4},"الملاحظات"]
[]
[null,null,{"$f":"DaysAndWeeks+DATE(CalendarYear,8,1)-WEEKDAY(DATE(CalendarYear,8,1),(WeekStart=\"الإثنين\")+1)+36","v":"2018-09-02"},"2018-09-03"]
[null,null,{"$f":"IF(WEEKDAY(CalendarDay)=WeekStartValue,CONCATENATE(\"أسبوع \",WEEKNUM(CalendarDay),\"/يوم \",CalendarDay-DATE(YEAR(CalendarDay),1,0)),CONCATENATE(\"يوم \",CalendarDay-DATE(YEAR(CalendarDay),1,0)))","v":"أسبوع 36/يوم 245"},{"$f":"IF(WEEKDAY(CalendarDay)=WeekStartValue,CONCATENATE(\"أسبوع \",WEEKNUM(CalendarDay),\"/يوم \",CalendarDay-DATE(YEAR(CalendarDay),1,0)),CONCATENATE(\"يوم \",CalendarDay-DATE(YEAR(CalendarDay),1,0)))","v":"يوم 246"}]

{"sheet":"سبتمبر","index":8,"n_rows":20,"n_cols":9,"rows_kept":20,"merged":[[16,2,17,2],[17,4,19,8]]}
[null,"سبتمبر",{"$f":"UPPER(TEXT(WeekStart,\"ddd\"))","v":"الأحد"},{"$f":"UPPER(TEXT(D3,\"aaa\"))","v":"الإثنين"},"الثلاثاء","الأربعاء","الخميس","الجمعة","السبت"]
[null,{"$f":"CalendarYear","v":2018}]
[null,null,{"$f":"DaysAndWeeks+DATE(CalendarYear,9,1)-WEEKDAY(DATE(CalendarYear,9,1),(WeekStart=\"الإثنين\")+1)+1","v":"2018-08-26"},"2018-08-27","2018-08-28","2018-08-29","2018-08-30","2018-08-31","2018-09-01"]
[null,null,{"$f":"IF(DAY(CalendarDay)=1,CONCATENATE(\"أسبوع \",WEEKNUM(CalendarDay),\"/يوم \",CalendarDay-DATE(YEAR(CalendarDay),1,0)),CONCATENATE(\"يوم \",CalendarDay-DATE(YEAR(CalendarDay),1,0)))","v":"يوم 238"},"يوم 239","يوم 240","يوم 241","يوم 242","يوم 243","أسبوع 35/يوم 244"]
[]
[null,null,{"$f":"DaysAndWeeks+DATE(CalendarYear,9,1)-WEEKDAY(DATE(CalendarYear,9,1),(WeekStart=\"الإثنين\")+1)+8","v":"2018-09-02"},"2018-09-03","2018-09-04","2018-09-05","2018-09-06","2018-09-07","2018-09-08"]
[null,null,{"$f":"IF(WEEKDAY(CalendarDay)=WeekStartValue,CONCATENATE(\"أسبوع \",WEEKNUM(CalendarDay),\"/يوم \",CalendarDay-DATE(YEAR(CalendarDay),1,0)),CONCATENATE(\"يوم \",CalendarDay-DATE(YEAR(CalendarDay),1,0)))","v":"أسبوع 36/يوم 245"},{"$f":"IF(WEEKDAY(CalendarDay)=WeekStartValue,CONCATENATE(\"أسبوع \",WEEKNUM(CalendarDay),\"/يوم \",CalendarDay-DATE(YEAR(CalendarDay),1,0)),CONCATENATE(\"يوم \",CalendarDay-DATE(YEAR(CalendarDay),1,0)))","v":"يوم 246"},{"$f":"IF(WEEKDAY(CalendarDay)=WeekStartValue,CONCATENATE(\"أسبوع \",WEEKNUM(CalendarDay),\"/يوم \",CalendarDay-DATE(YEAR(CalendarDay),1,0)),CONCATENATE(\"يوم \",CalendarDay-DATE(YEAR(CalendarDay),1,0)))","v":"يوم 247"},{"$f":"IF(WEEKDAY(CalendarDay)=WeekStartValue,CONCATENATE(\"أسبوع \",WEEKNUM(CalendarDay),\"/يوم \",CalendarDay-DATE(YEAR(CalendarDay),1,0)),CONCATENATE(\"يوم \",CalendarDay-DATE(YEAR(CalendarDay),1,0)))","v":"يوم 248"},{"$f":"IF(WEEKDAY(CalendarDay)=WeekStartValue,CONCATENATE(\"أسبوع \",WEEKNUM(CalendarDay),\"/يوم \",CalendarDay-DATE(YEAR(CalendarDay),1,0)),CONCATENATE(\"يوم \",CalendarDay-DATE(YEAR(CalendarDay),1,0)))","v":"يوم 249"},{"$f":"IF(WEEKDAY(CalendarDay)=WeekStartValue,CONCATENATE(\"أسبوع \",WEEKNUM(CalendarDay),\"/يوم \",CalendarDay-DATE(YEAR(CalendarDay),1,0)),CONCATENATE(\"يوم \",CalendarDay-DATE(YEAR(CalendarDay),1,0)))","v":"يوم 250"},{"$f":"IF(WEEKDAY(CalendarDay)=WeekStartValue,CONCATENATE(\"أسبوع \",WEEKNUM(CalendarDay),\"/يوم \",CalendarDay-DATE(YEAR(CalendarDay),1,0)),CONCATENATE(\"يوم \",CalendarDay-DATE(YEAR(CalendarDay),1,0)))","v":"يوم 251"}]
[]
[null,null,{"$f":"DaysAndWeeks+DATE(CalendarYear,9,1)-WEEKDAY(DATE(CalendarYear,9,1),(WeekStart=\"الإثنين\")+1)+15","v":"2018-09-09"},"2018-09-10","2018-09-11","2018-09-12","2018-09-13","2018-09-14","2018-09-15"]
[null,null,{"$f":"IF(WEEKDAY(CalendarDay)=WeekStartValue,CONCATENATE(\"أسبوع \",WEEKNUM(CalendarDay),\"/يوم \",CalendarDay-DATE(YEAR(CalendarDay),1,0)),CONCATENATE(\"يوم \",CalendarDay-DATE(YEAR(CalendarDay),1,0)))","v":"أسبوع 37/يوم 252"},{"$f":"IF(WEEKDAY(CalendarDay)=WeekStartValue,CONCATENATE(\"أسبوع \",WEEKNUM(CalendarDay),\"/يوم \",CalendarDay-DATE(YEAR(CalendarDay),1,0)),CONCATENATE(\"يوم \",CalendarDay-DATE(YEAR(CalendarDay),1,0)))","v":"يوم 253"},{"$f":"IF(WEEKDAY(CalendarDay)=WeekStartValue,CONCATENATE(\"أسبوع \",WEEKNUM(CalendarDay),\"/يوم \",CalendarDay-DATE(YEAR(CalendarDay),1,0)),CONCATENATE(\"يوم \",CalendarDay-DATE(YEAR(CalendarDay),1,0)))","v":"يوم 254"},{"$f":"IF(WEEKDAY(CalendarDay)=WeekStartValue,CONCATENATE(\"أسبوع \",WEEKNUM(CalendarDay),\"/يوم \",CalendarDay-DATE(YEAR(CalendarDay),1,0)),CONCATENATE(\"يوم \",CalendarDay-DATE(YEAR(CalendarDay),1,0)))","v":"يوم 255"},{"$f":"IF(WEEKDAY(CalendarDay)=WeekStartValue,CONCATENATE(\"أسبوع \",WEEKNUM(CalendarDay),\"/يوم \",CalendarDay-DATE(YEAR(CalendarDay),1,0)),CONCATENATE(\"يوم \",CalendarDay-DATE(YEAR(CalendarDay),1,0)))","v":"يوم 256"},{"$f":"IF(WEEKDAY(CalendarDay)=WeekStartValue,CONCATENATE(\"أسبوع \",WEEKNUM(CalendarDay),\"/يوم \",CalendarDay-DATE(YEAR(CalendarDay),1,0)),CONCATENATE(\"يوم \",CalendarDay-DATE(YEAR(CalendarDay),1,0)))","v":"يوم 257"},{"$f":"IF(WEEKDAY(CalendarDay)=WeekStartValue,CONCATENATE(\"أسبوع \",WEEKNUM(CalendarDay),\"/يوم \",CalendarDay-DATE(YEAR(CalendarDay),1,0)),CONCATENATE(\"يوم \",CalendarDay-DATE(YEAR(CalendarDay),1,0)))","v":"يوم 258"}]
[]
[null,null,{"$f":"DaysAndWeeks+DATE(CalendarYear,9,1)-WEEKDAY(DATE(CalendarYear,9,1),(WeekStart=\"الإثنين\")+1)+22","v":"2018-09-16"},"2018-09-17","2018-09-18","2018-09-19","2018-09-20","2018-09-21","2018-09-22"]
[null,null,{"$f":"IF(WEEKDAY(CalendarDay)=WeekStartValue,CONCATENATE(\"أسبوع \",WEEKNUM(CalendarDay),\"/يوم \",CalendarDay-DATE(YEAR(CalendarDay),1,0)),CONCATENATE(\"يوم \",CalendarDay-DATE(YEAR(CalendarDay),1,0)))","v":"أسبوع 38/يوم 259"},{"$f":"IF(WEEKDAY(CalendarDay)=WeekStartValue,CONCATENATE(\"أسبوع \",WEEKNUM(CalendarDay),\"/يوم \",CalendarDay-DATE(YEAR(CalendarDay),1,0)),CONCATENATE(\"يوم \",CalendarDay-DATE(YEAR(CalendarDay),1,0)))","v":"يوم 260"},{"$f":"IF(WEEKDAY(CalendarDay)=WeekStartValue,CONCATENATE(\"أسبوع \",WEEKNUM(CalendarDay),\"/يوم \",CalendarDay-DATE(YEAR(CalendarDay),1,0)),CONCATENATE(\"يوم \",CalendarDay-DATE(YEAR(CalendarDay),1,0)))","v":"يوم 261"},{"$f":"IF(WEEKDAY(CalendarDay)=WeekStartValue,CONCATENATE(\"أسبوع \",WEEKNUM(CalendarDay),\"/يوم \",CalendarDay-DATE(YEAR(CalendarDay),1,0)),CONCATENATE(\"يوم \",CalendarDay-DATE(YEAR(CalendarDay),1,0)))","v":"يوم 262"},{"$f":"IF(WEEKDAY(CalendarDay)=WeekStartValue,CONCATENATE(\"أسبوع \",WEEKNUM(CalendarDay),\"/يوم \",CalendarDay-DATE(YEAR(CalendarDay),1,0)),CONCATENATE(\"يوم \",CalendarDay-DATE(YEAR(CalendarDay),1,0)))","v":"يوم 263"},{"$f":"IF(WEEKDAY(CalendarDay)=WeekStartValue,CONCATENATE(\"أسبوع \",WEEKNUM(CalendarDay),\"/يوم \",CalendarDay-DATE(YEAR(CalendarDay),1,0)),CONCATENATE(\"يوم \",CalendarDay-DATE(YEAR(CalendarDay),1,0)))","v":"يوم 264"},{"$f":"IF(WEEKDAY(CalendarDay)=WeekStartValue,CONCATENATE(\"أسبوع \",WEEKNUM(CalendarDay),\"/يوم \",CalendarDay-DATE(YEAR(CalendarDay),1,0)),CONCATENATE(\"يوم \",CalendarDay-DATE(YEAR(CalendarDay),1,0)))","v":"يوم 265"}]
[]
[null,null,{"$f":"DaysAndWeeks+DATE(CalendarYear,9,1)-WEEKDAY(DATE(CalendarYear,9,1),(WeekStart=\"الإثنين\")+1)+29","v":"2018-09-23"},"2018-09-24","2018-09-25","2018-09-26","2018-09-27","2018-09-28","2018-09-29"]
[null,null,{"$f":"IF(WEEKDAY(CalendarDay)=WeekStartValue,CONCATENATE(\"أسبوع \",WEEKNUM(CalendarDay),\"/يوم \",CalendarDay-DATE(YEAR(CalendarDay),1,0)),CONCATENATE(\"يوم \",CalendarDay-DATE(YEAR(CalendarDay),1,0)))","v":"أسبوع 39/يوم 266"},{"$f":"IF(WEEKDAY(CalendarDay)=WeekStartValue,CONCATENATE(\"أسبوع \",WEEKNUM(CalendarDay),\"/يوم \",CalendarDay-DATE(YEAR(CalendarDay),1,0)),CONCATENATE(\"يوم \",CalendarDay-DATE(YEAR(CalendarDay),1,0)))","v":"يوم 267"},{"$f":"IF(WEEKDAY(CalendarDay)=WeekStartValue,CONCATENATE(\"أسبوع \",WEEKNUM(CalendarDay),\"/يوم \",CalendarDay-DATE(YEAR(CalendarDay),1,0)),CONCATENATE(\"يوم \",CalendarDay-DATE(YEAR(CalendarDay),1,0)))","v":"يوم 268"},{"$f":"IF(WEEKDAY(CalendarDay)=WeekStartValue,CONCATENATE(\"أسبوع \",WEEKNUM(CalendarDay),\"/يوم \",CalendarDay-DATE(YEAR(CalendarDay),1,0)),CONCATENATE(\"يوم \",CalendarDay-DATE(YEAR(CalendarDay),1,0)))","v":"يوم 269"},{"$f":"IF(WEEKDAY(CalendarDay)=WeekStartValue,CONCATENATE(\"أسبوع \",WEEKNUM(CalendarDay),\"/يوم \",CalendarDay-DATE(YEAR(CalendarDay),1,0)),CONCATENATE(\"يوم \",CalendarDay-DATE(YEAR(CalendarDay),1,0)))","v":"يوم 270"},{"$f":"IF(WEEKDAY(CalendarDay)=WeekStartValue,CONCATENATE(\"أسبوع \",WEEKNUM(CalendarDay),\"/يوم \",CalendarDay-DATE(YEAR(CalendarDay),1,0)),CONCATENATE(\"يوم \",CalendarDay-DATE(YEAR(CalendarDay),1,0)))","v":"يوم 271"},{"$f":"IF(WEEKDAY(CalendarDay)=WeekStartValue,CONCATENATE(\"أسبوع \",WEEKNUM(CalendarDay),\"/يوم \",CalendarDay-DATE(YEAR(CalendarDay),1,0)),CONCATENATE(\"يوم \",CalendarDay-DATE(YEAR(CalendarDay),1,0)))","v":"يوم 272"}]
[{"$nulls":4},"الملاحظات"]
[]
[null,null,{"$f":"DaysAndWeeks+DATE(CalendarYear,9,1)-WEEKDAY(DATE(CalendarYear,9,1),(WeekStart=\"الإثنين\")+1)+36","v":"2018-09-30"},"2018-10-01"]
[null,null,{"$f":"IF(WEEKDAY(CalendarDay)=WeekStartValue,CONCATENATE(\"أسبوع \",WEEKNUM(CalendarDay),\"/يوم \",CalendarDay-DATE(YEAR(CalendarDay),1,0)),CONCATENATE(\"يوم \",CalendarDay-DATE(YEAR(CalendarDay),1,0)))","v":"أسبوع 40/يوم 273"},{"$f":"IF(WEEKDAY(CalendarDay)=WeekStartValue,CONCATENATE(\"أسبوع \",WEEKNUM(CalendarDay),\"/يوم \",CalendarDay-DATE(YEAR(CalendarDay),1,0)),CONCATENATE(\"يوم \",CalendarDay-DATE(YEAR(CalendarDay),1,0)))","v":"يوم 274"}]

{"sheet":"أكتوبر","index":9,"n_rows":20,"n_cols":9,"rows_kept":20,"merged":[[16,2,17,2],[17,4,19,8]]}
[null,"أكتوبر",{"$f":"UPPER(TEXT(WeekStart,\"ddd\"))","v":"الأحد"},{"$f":"UPPER(TEXT(D3,\"aaa\"))","v":"الإثنين"},"الثلاثاء","الأربعاء","الخميس","الجمعة","السبت"]
[null,{"$f":"CalendarYear","v":2018}]
[null,null,{"$f":"DaysAndWeeks+DATE(CalendarYear,10,1)-WEEKDAY(DATE(CalendarYear,10,1),(WeekStart=\"الإثنين\")+1)+1","v":"2018-09-30"},"2018-10-01","2018-10-02","2018-10-03","2018-10-04","2018-10-05","2018-10-06"]
[null,null,{"$f":"IF(DAY(CalendarDay)=1,CONCATENATE(\"أسبوع \",WEEKNUM(CalendarDay),\"/يوم \",CalendarDay-DATE(YEAR(CalendarDay),1,0)),CONCATENATE(\"يوم \",CalendarDay-DATE(YEAR(CalendarDay),1,0)))","v":"يوم 273"},"أسبوع 40/يوم 274","يوم 275","يوم 276","يوم 277","يوم 278","يوم 279"]
[]
[null,null,{"$f":"DaysAndWeeks+DATE(CalendarYear,10,1)-WEEKDAY(DATE(CalendarYear,10,1),(WeekStart=\"الإثنين\")+1)+8","v":"2018-10-07"},"2018-10-08","2018-10-09","2018-10-10","2018-10-11","2018-10-12","2018-10-13"]
[null,null,{"$f":"IF(WEEKDAY(CalendarDay)=WeekStartValue,CONCATENATE(\"أسبوع \",WEEKNUM(CalendarDay),\"/يوم \",CalendarDay-DATE(YEAR(CalendarDay),1,0)),CONCATENATE(\"يوم \",CalendarDay-DATE(YEAR(CalendarDay),1,0)))","v":"أسبوع 41/يوم 280"},{"$f":"IF(WEEKDAY(CalendarDay)=WeekStartValue,CONCATENATE(\"أسبوع \",WEEKNUM(CalendarDay),\"/يوم \",CalendarDay-DATE(YEAR(CalendarDay),1,0)),CONCATENATE(\"يوم \",CalendarDay-DATE(YEAR(CalendarDay),1,0)))","v":"يوم 281"},{"$f":"IF(WEEKDAY(CalendarDay)=WeekStartValue,CONCATENATE(\"أسبوع \",WEEKNUM(CalendarDay),\"/يوم \",CalendarDay-DATE(YEAR(CalendarDay),1,0)),CONCATENATE(\"يوم \",CalendarDay-DATE(YEAR(CalendarDay),1,0)))","v":"يوم 282"},{"$f":"IF(WEEKDAY(CalendarDay)=WeekStartValue,CONCATENATE(\"أسبوع \",WEEKNUM(CalendarDay),\"/يوم \",CalendarDay-DATE(YEAR(CalendarDay),1,0)),CONCATENATE(\"يوم \",CalendarDay-DATE(YEAR(CalendarDay),1,0)))","v":"يوم 283"},{"$f":"IF(WEEKDAY(CalendarDay)=WeekStartValue,CONCATENATE(\"أسبوع \",WEEKNUM(CalendarDay),\"/يوم \",CalendarDay-DATE(YEAR(CalendarDay),1,0)),CONCATENATE(\"يوم \",CalendarDay-DATE(YEAR(CalendarDay),1,0)))","v":"يوم 284"},{"$f":"IF(WEEKDAY(CalendarDay)=WeekStartValue,CONCATENATE(\"أسبوع \",WEEKNUM(CalendarDay),\"/يوم \",CalendarDay-DATE(YEAR(CalendarDay),1,0)),CONCATENATE(\"يوم \",CalendarDay-DATE(YEAR(CalendarDay),1,0)))","v":"يوم 285"},{"$f":"IF(WEEKDAY(CalendarDay)=WeekStartValue,CONCATENATE(\"أسبوع \",WEEKNUM(CalendarDay),\"/يوم \",CalendarDay-DATE(YEAR(CalendarDay),1,0)),CONCATENATE(\"يوم \",CalendarDay-DATE(YEAR(CalendarDay),1,0)))","v":"يوم 286"}]
[]
[null,null,{"$f":"DaysAndWeeks+DATE(CalendarYear,10,1)-WEEKDAY(DATE(CalendarYear,10,1),(WeekStart=\"الإثنين\")+1)+15","v":"2018-10-14"},"2018-10-15","2018-10-16","2018-10-17","2018-10-18","2018-10-19","2018-10-20"]
[null,null,{"$f":"IF(WEEKDAY(CalendarDay)=WeekStartValue,CONCATENATE(\"أسبوع \",WEEKNUM(CalendarDay),\"/يوم \",CalendarDay-DATE(YEAR(CalendarDay),1,0)),CONCATENATE(\"يوم \",CalendarDay-DATE(YEAR(CalendarDay),1,0)))","v":"أسبوع 42/يوم 287"},{"$f":"IF(WEEKDAY(CalendarDay)=WeekStartValue,CONCATENATE(\"أسبوع \",WEEKNUM(CalendarDay),\"/يوم \",CalendarDay-DATE(YEAR(CalendarDay),1,0)),CONCATENATE(\"يوم \",CalendarDay-DATE(YEAR(CalendarDay),1,0)))","v":"يوم 288"},{"$f":"IF(WEEKDAY(CalendarDay)=WeekStartValue,CONCATENATE(\"أسبوع \",WEEKNUM(CalendarDay),\"/يوم \",CalendarDay-DATE(YEAR(CalendarDay),1,0)),CONCATENATE(\"يوم \",CalendarDay-DATE(YEAR(CalendarDay),1,0)))","v":"يوم 289"},{"$f":"IF(WEEKDAY(CalendarDay)=WeekStartValue,CONCATENATE(\"أسبوع \",WEEKNUM(CalendarDay),\"/يوم \",CalendarDay-DATE(YEAR(CalendarDay),1,0)),CONCATENATE(\"يوم \",CalendarDay-DATE(YEAR(CalendarDay),1,0)))","v":"يوم 290"},{"$f":"IF(WEEKDAY(CalendarDay)=WeekStartValue,CONCATENATE(\"أسبوع \",WEEKNUM(CalendarDay),\"/يوم \",CalendarDay-DATE(YEAR(CalendarDay),1,0)),CONCATENATE(\"يوم \",CalendarDay-DATE(YEAR(CalendarDay),1,0)))","v":"يوم 291"},{"$f":"IF(WEEKDAY(CalendarDay)=WeekStartValue,CONCATENATE(\"أسبوع \",WEEKNUM(CalendarDay),\"/يوم \",CalendarDay-DATE(YEAR(CalendarDay),1,0)),CONCATENATE(\"يوم \",CalendarDay-DATE(YEAR(CalendarDay),1,0)))","v":"يوم 292"},{"$f":"IF(WEEKDAY(CalendarDay)=WeekStartValue,CONCATENATE(\"أسبوع \",WEEKNUM(CalendarDay),\"/يوم \",CalendarDay-DATE(YEAR(CalendarDay),1,0)),CONCATENATE(\"يوم \",CalendarDay-DATE(YEAR(CalendarDay),1,0)))","v":"يوم 293"}]
[]
[null,null,{"$f":"DaysAndWeeks+DATE(CalendarYear,10,1)-WEEKDAY(DATE(CalendarYear,10,1),(WeekStart=\"الإثنين\")+1)+22","v":"2018-10-21"},"2018-10-22","2018-10-23","2018-10-24","2018-10-25","2018-10-26","2018-10-27"]
[null,null,{"$f":"IF(WEEKDAY(CalendarDay)=WeekStartValue,CONCATENATE(\"أسبوع \",WEEKNUM(CalendarDay),\"/يوم \",CalendarDay-DATE(YEAR(CalendarDay),1,0)),CONCATENATE(\"يوم \",CalendarDay-DATE(YEAR(CalendarDay),1,0)))","v":"أسبوع 43/يوم 294"},{"$f":"IF(WEEKDAY(CalendarDay)=WeekStartValue,CONCATENATE(\"أسبوع \",WEEKNUM(CalendarDay),\"/يوم \",CalendarDay-DATE(YEAR(CalendarDay),1,0)),CONCATENATE(\"يوم \",CalendarDay-DATE(YEAR(CalendarDay),1,0)))","v":"يوم 295"},{"$f":"IF(WEEKDAY(CalendarDay)=WeekStartValue,CONCATENATE(\"أسبوع \",WEEKNUM(CalendarDay),\"/يوم \",CalendarDay-DATE(YEAR(CalendarDay),1,0)),CONCATENATE(\"يوم \",CalendarDay-DATE(YEAR(CalendarDay),1,0)))","v":"يوم 296"},{"$f":"IF(WEEKDAY(CalendarDay)=WeekStartValue,CONCATENATE(\"أسبوع \",WEEKNUM(CalendarDay),\"/يوم \",CalendarDay-DATE(YEAR(CalendarDay),1,0)),CONCATENATE(\"يوم \",CalendarDay-DATE(YEAR(CalendarDay),1,0)))","v":"يوم 297"},{"$f":"IF(WEEKDAY(CalendarDay)=WeekStartValue,CONCATENATE(\"أسبوع \",WEEKNUM(CalendarDay),\"/يوم \",CalendarDay-DATE(YEAR(CalendarDay),1,0)),CONCATENATE(\"يوم \",CalendarDay-DATE(YEAR(CalendarDay),1,0)))","v":"يوم 298"},{"$f":"IF(WEEKDAY(CalendarDay)=WeekStartValue,CONCATENATE(\"أسبوع \",WEEKNUM(CalendarDay),\"/يوم \",CalendarDay-DATE(YEAR(CalendarDay),1,0)),CONCATENATE(\"يوم \",CalendarDay-DATE(YEAR(CalendarDay),1,0)))","v":"يوم 299"},{"$f":"IF(WEEKDAY(CalendarDay)=WeekStartValue,CONCATENATE(\"أسبوع \",WEEKNUM(CalendarDay),\"/يوم \",CalendarDay-DATE(YEAR(CalendarDay),1,0)),CONCATENATE(\"يوم \",CalendarDay-DATE(YEAR(CalendarDay),1,0)))","v":"يوم 300"}]
[]
[null,null,{"$f":"DaysAndWeeks+DATE(CalendarYear,10,1)-WEEKDAY(DATE(CalendarYear,10,1),(WeekStart=\"الإثنين\")+1)+29","v":"2018-10-28"},"2018-10-29","2018-10-30","2018-10-31","2018-11-01","2018-11-02","2018-11-03"]
[null,null,{"$f":"IF(WEEKDAY(CalendarDay)=WeekStartValue,CONCATENATE(\"أسبوع \",WEEKNUM(CalendarDay),\"/يوم \",CalendarDay-DATE(YEAR(CalendarDay),1,0)),CONCATENATE(\"يوم \",CalendarDay-DATE(YEAR(CalendarDay),1,0)))","v":"أسبوع 44/يوم 301"},{"$f":"IF(WEEKDAY(CalendarDay)=WeekStartValue,CONCATENATE(\"أسبوع \",WEEKNUM(CalendarDay),\"/يوم \",CalendarDay-DATE(YEAR(CalendarDay),1,0)),CONCATENATE(\"يوم \",CalendarDay-DATE(YEAR(CalendarDay),1,0)))","v":"يوم 302"},{"$f":"IF(WEEKDAY(CalendarDay)=WeekStartValue,CONCATENATE(\"أسبوع \",WEEKNUM(CalendarDay),\"/يوم \",CalendarDay-DATE(YEAR(CalendarDay),1,0)),CONCATENATE(\"يوم \",CalendarDay-DATE(YEAR(CalendarDay),1,0)))","v":"يوم 303"},{"$f":"IF(WEEKDAY(CalendarDay)=WeekStartValue,CONCATENATE(\"أسبوع \",WEEKNUM(CalendarDay),\"/يوم \",CalendarDay-DATE(YEAR(CalendarDay),1,0)),CONCATENATE(\"يوم \",CalendarDay-DATE(YEAR(CalendarDay),1,0)))","v":"يوم 304"},{"$f":"IF(WEEKDAY(CalendarDay)=WeekStartValue,CONCATENATE(\"أسبوع \",WEEKNUM(CalendarDay),\"/يوم \",CalendarDay-DATE(YEAR(CalendarDay),1,0)),CONCATENATE(\"يوم \",CalendarDay-DATE(YEAR(CalendarDay),1,0)))","v":"يوم 305"},{"$f":"IF(WEEKDAY(CalendarDay)=WeekStartValue,CONCATENATE(\"أسبوع \",WEEKNUM(CalendarDay),\"/يوم \",CalendarDay-DATE(YEAR(CalendarDay),1,0)),CONCATENATE(\"يوم \",CalendarDay-DATE(YEAR(CalendarDay),1,0)))","v":"يوم 306"},{"$f":"IF(WEEKDAY(CalendarDay)=WeekStartValue,CONCATENATE(\"أسبوع \",WEEKNUM(CalendarDay),\"/يوم \",CalendarDay-DATE(YEAR(CalendarDay),1,0)),CONCATENATE(\"يوم \",CalendarDay-DATE(YEAR(CalendarDay),1,0)))","v":"يوم 307"}]
[{"$nulls":4},"الملاحظات"]
[]
[null,null,{"$f":"DaysAndWeeks+DATE(CalendarYear,10,1)-WEEKDAY(DATE(CalendarYear,10,1),(WeekStart=\"الإثنين\")+1)+36","v":"2018-11-04"},"2018-11-05"]
[null,null,{"$f":"IF(WEEKDAY(CalendarDay)=WeekStartValue,CONCATENATE(\"أسبوع \",WEEKNUM(CalendarDay),\"/يوم \",CalendarDay-DATE(YEAR(CalendarDay),1,0)),CONCATENATE(\"يوم \",CalendarDay-DATE(YEAR(CalendarDay),1,0)))","v":"أسبوع 45/يوم 308"},{"$f":"IF(WEEKDAY(CalendarDay)=WeekStartValue,CONCATENATE(\"أسبوع \",WEEKNUM(CalendarDay),\"/يوم \",CalendarDay-DATE(YEAR(CalendarDay),1,0)),CONCATENATE(\"يوم \",CalendarDay-DATE(YEAR(CalendarDay),1,0)))","v":"يوم 309"}]

{"sheet":"نوفمبر","index":10,"n_rows":20,"n_cols":9,"rows_kept":20,"merged":[[16,2,17,2],[17,4,19,8]]}
[null,"نوفمبر",{"$f":"UPPER(TEXT(WeekStart,\"ddd\"))","v":"الأحد"},{"$f":"UPPER(TEXT(D3,\"aaa\"))","v":"الإثنين"},"الثلاثاء","الأربعاء","الخميس","الجمعة","السبت"]
[null,{"$f":"CalendarYear","v":2018}]
[null,null,{"$f":"DaysAndWeeks+DATE(CalendarYear,11,1)-WEEKDAY(DATE(CalendarYear,11,1),(WeekStart=\"الإثنين\")+1)+1","v":"2018-10-28"},"2018-10-29","2018-10-30","2018-10-31","2018-11-01","2018-11-02","2018-11-03"]
[null,null,{"$f":"IF(DAY(CalendarDay)=1,CONCATENATE(\"أسبوع \",WEEKNUM(CalendarDay),\"/يوم \",CalendarDay-DATE(YEAR(CalendarDay),1,0)),CONCATENATE(\"يوم \",CalendarDay-DATE(YEAR(CalendarDay),1,0)))","v":"يوم 301"},"يوم 302","يوم 303","يوم 304","أسبوع 44/يوم 305","يوم 306","يوم 307"]
[]
[null,null,{"$f":"DaysAndWeeks+DATE(CalendarYear,11,1)-WEEKDAY(DATE(CalendarYear,11,1),(WeekStart=\"الإثنين\")+1)+8","v":"2018-11-04"},"2018-11-05","2018-11-06","2018-11-07","2018-11-08","2018-11-09","2018-11-10"]
[null,null,{"$f":"IF(WEEKDAY(CalendarDay)=WeekStartValue,CONCATENATE(\"أسبوع \",WEEKNUM(CalendarDay),\"/يوم \",CalendarDay-DATE(YEAR(CalendarDay),1,0)),CONCATENATE(\"يوم \",CalendarDay-DATE(YEAR(CalendarDay),1,0)))","v":"أسبوع 45/يوم 308"},{"$f":"IF(WEEKDAY(CalendarDay)=WeekStartValue,CONCATENATE(\"أسبوع \",WEEKNUM(CalendarDay),\"/يوم \",CalendarDay-DATE(YEAR(CalendarDay),1,0)),CONCATENATE(\"يوم \",CalendarDay-DATE(YEAR(CalendarDay),1,0)))","v":"يوم 309"},{"$f":"IF(WEEKDAY(CalendarDay)=WeekStartValue,CONCATENATE(\"أسبوع \",WEEKNUM(CalendarDay),\"/يوم \",CalendarDay-DATE(YEAR(CalendarDay),1,0)),CONCATENATE(\"يوم \",CalendarDay-DATE(YEAR(CalendarDay),1,0)))","v":"يوم 310"},{"$f":"IF(WEEKDAY(CalendarDay)=WeekStartValue,CONCATENATE(\"أسبوع \",WEEKNUM(CalendarDay),\"/يوم \",CalendarDay-DATE(YEAR(CalendarDay),1,0)),CONCATENATE(\"يوم \",CalendarDay-DATE(YEAR(CalendarDay),1,0)))","v":"يوم 311"},{"$f":"IF(WEEKDAY(CalendarDay)=WeekStartValue,CONCATENATE(\"أسبوع \",WEEKNUM(CalendarDay),\"/يوم \",CalendarDay-DATE(YEAR(CalendarDay),1,0)),CONCATENATE(\"يوم \",CalendarDay-DATE(YEAR(CalendarDay),1,0)))","v":"يوم 312"},{"$f":"IF(WEEKDAY(CalendarDay)=WeekStartValue,CONCATENATE(\"أسبوع \",WEEKNUM(CalendarDay),\"/يوم \",CalendarDay-DATE(YEAR(CalendarDay),1,0)),CONCATENATE(\"يوم \",CalendarDay-DATE(YEAR(CalendarDay),1,0)))","v":"يوم 313"},{"$f":"IF(WEEKDAY(CalendarDay)=WeekStartValue,CONCATENATE(\"أسبوع \",WEEKNUM(CalendarDay),\"/يوم \",CalendarDay-DATE(YEAR(CalendarDay),1,0)),CONCATENATE(\"يوم \",CalendarDay-DATE(YEAR(CalendarDay),1,0)))","v":"يوم 314"}]
[]
[null,null,{"$f":"DaysAndWeeks+DATE(CalendarYear,11,1)-WEEKDAY(DATE(CalendarYear,11,1),(WeekStart=\"الإثنين\")+1)+15","v":"2018-11-11"},"2018-11-12","2018-11-13","2018-11-14","2018-11-15","2018-11-16","2018-11-17"]
[null,null,{"$f":"IF(WEEKDAY(CalendarDay)=WeekStartValue,CONCATENATE(\"أسبوع \",WEEKNUM(CalendarDay),\"/يوم \",CalendarDay-DATE(YEAR(CalendarDay),1,0)),CONCATENATE(\"يوم \",CalendarDay-DATE(YEAR(CalendarDay),1,0)))","v":"أسبوع 46/يوم 315"},{"$f":"IF(WEEKDAY(CalendarDay)=WeekStartValue,CONCATENATE(\"أسبوع \",WEEKNUM(CalendarDay),\"/يوم \",CalendarDay-DATE(YEAR(CalendarDay),1,0)),CONCATENATE(\"يوم \",CalendarDay-DATE(YEAR(CalendarDay),1,0)))","v":"يوم 316"},{"$f":"IF(WEEKDAY(CalendarDay)=WeekStartValue,CONCATENATE(\"أسبوع \",WEEKNUM(CalendarDay),\"/يوم \",CalendarDay-DATE(YEAR(CalendarDay),1,0)),CONCATENATE(\"يوم \",CalendarDay-DATE(YEAR(CalendarDay),1,0)))","v":"يوم 317"},{"$f":"IF(WEEKDAY(CalendarDay)=WeekStartValue,CONCATENATE(\"أسبوع \",WEEKNUM(CalendarDay),\"/يوم \",CalendarDay-DATE(YEAR(CalendarDay),1,0)),CONCATENATE(\"يوم \",CalendarDay-DATE(YEAR(CalendarDay),1,0)))","v":"يوم 318"},{"$f":"IF(WEEKDAY(CalendarDay)=WeekStartValue,CONCATENATE(\"أسبوع \",WEEKNUM(CalendarDay),\"/يوم \",CalendarDay-DATE(YEAR(CalendarDay),1,0)),CONCATENATE(\"يوم \",CalendarDay-DATE(YEAR(CalendarDay),1,0)))","v":"يوم 319"},{"$f":"IF(WEEKDAY(CalendarDay)=WeekStartValue,CONCATENATE(\"أسبوع \",WEEKNUM(CalendarDay),\"/يوم \",CalendarDay-DATE(YEAR(CalendarDay),1,0)),CONCATENATE(\"يوم \",CalendarDay-DATE(YEAR(CalendarDay),1,0)))","v":"يوم 320"},{"$f":"IF(WEEKDAY(CalendarDay)=WeekStartValue,CONCATENATE(\"أسبوع \",WEEKNUM(CalendarDay),\"/يوم \",CalendarDay-DATE(YEAR(CalendarDay),1,0)),CONCATENATE(\"يوم \",CalendarDay-DATE(YEAR(CalendarDay),1,0)))","v":"يوم 321"}]
[]
[null,null,{"$f":"DaysAndWeeks+DATE(CalendarYear,11,1)-WEEKDAY(DATE(CalendarYear,11,1),(WeekStart=\"الإثنين\")+1)+22","v":"2018-11-18"},"2018-11-19","2018-11-20","2018-11-21","2018-11-22","2018-11-23","2018-11-24"]
[null,null,{"$f":"IF(WEEKDAY(CalendarDay)=WeekStartValue,CONCATENATE(\"أسبوع \",WEEKNUM(CalendarDay),\"/يوم \",CalendarDay-DATE(YEAR(CalendarDay),1,0)),CONCATENATE(\"يوم \",CalendarDay-DATE(YEAR(CalendarDay),1,0)))","v":"أسبوع 47/يوم 322"},{"$f":"IF(WEEKDAY(CalendarDay)=WeekStartValue,CONCATENATE(\"أسبوع \",WEEKNUM(CalendarDay),\"/يوم \",CalendarDay-DATE(YEAR(CalendarDay),1,0)),CONCATENATE(\"يوم \",CalendarDay-DATE(YEAR(CalendarDay),1,0)))","v":"يوم 323"},{"$f":"IF(WEEKDAY(CalendarDay)=WeekStartValue,CONCATENATE(\"أسبوع \",WEEKNUM(CalendarDay),\"/يوم \",CalendarDay-DATE(YEAR(CalendarDay),1,0)),CONCATENATE(\"يوم \",CalendarDay-DATE(YEAR(CalendarDay),1,0)))","v":"يوم 324"},{"$f":"IF(WEEKDAY(CalendarDay)=WeekStartValue,CONCATENATE(\"أسبوع \",WEEKNUM(CalendarDay),\"/يوم \",CalendarDay-DATE(YEAR(CalendarDay),1,0)),CONCATENATE(\"يوم \",CalendarDay-DATE(YEAR(CalendarDay),1,0)))","v":"يوم 325"},{"$f":"IF(WEEKDAY(CalendarDay)=WeekStartValue,CONCATENATE(\"أسبوع \",WEEKNUM(CalendarDay),\"/يوم \",CalendarDay-DATE(YEAR(CalendarDay),1,0)),CONCATENATE(\"يوم \",CalendarDay-DATE(YEAR(CalendarDay),1,0)))","v":"يوم 326"},{"$f":"IF(WEEKDAY(CalendarDay)=WeekStartValue,CONCATENATE(\"أسبوع \",WEEKNUM(CalendarDay),\"/يوم \",CalendarDay-DATE(YEAR(CalendarDay),1,0)),CONCATENATE(\"يوم \",CalendarDay-DATE(YEAR(CalendarDay),1,0)))","v":"يوم 327"},{"$f":"IF(WEEKDAY(CalendarDay)=WeekStartValue,CONCATENATE(\"أسبوع \",WEEKNUM(CalendarDay),\"/يوم \",CalendarDay-DATE(YEAR(CalendarDay),1,0)),CONCATENATE(\"يوم \",CalendarDay-DATE(YEAR(CalendarDay),1,0)))","v":"يوم 328"}]
[]
[null,null,{"$f":"DaysAndWeeks+DATE(CalendarYear,11,1)-WEEKDAY(DATE(CalendarYear,11,1),(WeekStart=\"الإثنين\")+1)+29","v":"2018-11-25"},"2018-11-26","2018-11-27","2018-11-28","2018-11-29","2018-11-30","2018-12-01"]
[null,null,{"$f":"IF(WEEKDAY(CalendarDay)=WeekStartValue,CONCATENATE(\"أسبوع \",WEEKNUM(CalendarDay),\"/يوم \",CalendarDay-DATE(YEAR(CalendarDay),1,0)),CONCATENATE(\"يوم \",CalendarDay-DATE(YEAR(CalendarDay),1,0)))","v":"أسبوع 48/يوم 329"},{"$f":"IF(WEEKDAY(CalendarDay)=WeekStartValue,CONCATENATE(\"أسبوع \",WEEKNUM(CalendarDay),\"/يوم \",CalendarDay-DATE(YEAR(CalendarDay),1,0)),CONCATENATE(\"يوم \",CalendarDay-DATE(YEAR(CalendarDay),1,0)))","v":"يوم 330"},{"$f":"IF(WEEKDAY(CalendarDay)=WeekStartValue,CONCATENATE(\"أسبوع \",WEEKNUM(CalendarDay),\"/يوم \",CalendarDay-DATE(YEAR(CalendarDay),1,0)),CONCATENATE(\"يوم \",CalendarDay-DATE(YEAR(CalendarDay),1,0)))","v":"يوم 331"},{"$f":"IF(WEEKDAY(CalendarDay)=WeekStartValue,CONCATENATE(\"أسبوع \",WEEKNUM(CalendarDay),\"/يوم \",CalendarDay-DATE(YEAR(CalendarDay),1,0)),CONCATENATE(\"يوم \",CalendarDay-DATE(YEAR(CalendarDay),1,0)))","v":"يوم 332"},{"$f":"IF(WEEKDAY(CalendarDay)=WeekStartValue,CONCATENATE(\"أسبوع \",WEEKNUM(CalendarDay),\"/يوم \",CalendarDay-DATE(YEAR(CalendarDay),1,0)),CONCATENATE(\"يوم \",CalendarDay-DATE(YEAR(CalendarDay),1,0)))","v":"يوم 333"},{"$f":"IF(WEEKDAY(CalendarDay)=WeekStartValue,CONCATENATE(\"أسبوع \",WEEKNUM(CalendarDay),\"/يوم \",CalendarDay-DATE(YEAR(CalendarDay),1,0)),CONCATENATE(\"يوم \",CalendarDay-DATE(YEAR(CalendarDay),1,0)))","v":"يوم 334"},{"$f":"IF(WEEKDAY(CalendarDay)=WeekStartValue,CONCATENATE(\"أسبوع \",WEEKNUM(CalendarDay),\"/يوم \",CalendarDay-DATE(YEAR(CalendarDay),1,0)),CONCATENATE(\"يوم \",CalendarDay-DATE(YEAR(CalendarDay),1,0)))","v":"يوم 335"}]
[{"$nulls":4},"الملاحظات"]
[]
[null,null,{"$f":"DaysAndWeeks+DATE(CalendarYear,11,1)-WEEKDAY(DATE(CalendarYear,11,1),(WeekStart=\"الإثنين\")+1)+36","v":"2018-12-02"},"2018-12-03"]
[null,null,{"$f":"IF(WEEKDAY(CalendarDay)=WeekStartValue,CONCATENATE(\"أسبوع \",WEEKNUM(CalendarDay),\"/يوم \",CalendarDay-DATE(YEAR(CalendarDay),1,0)),CONCATENATE(\"يوم \",CalendarDay-DATE(YEAR(CalendarDay),1,0)))","v":"أسبوع 49/يوم 336"},{"$f":"IF(WEEKDAY(CalendarDay)=WeekStartValue,CONCATENATE(\"أسبوع \",WEEKNUM(CalendarDay),\"/يوم \",CalendarDay-DATE(YEAR(CalendarDay),1,0)),CONCATENATE(\"يوم \",CalendarDay-DATE(YEAR(CalendarDay),1,0)))","v":"يوم 337"}]

{"sheet":"ديسمبر","index":11,"n_rows":20,"n_cols":9,"rows_kept":20,"merged":[[16,2,17,2],[17,4,19,8]]}
[null,"ديسمبر",{"$f":"UPPER(TEXT(WeekStart,\"ddd\"))","v":"الأحد"},{"$f":"UPPER(TEXT(D3,\"aaa\"))","v":"الإثنين"},"الثلاثاء","الأربعاء","الخميس","الجمعة","السبت"]
[null,{"$f":"CalendarYear","v":2018}]
[null,null,{"$f":"DaysAndWeeks+DATE(CalendarYear,12,1)-WEEKDAY(DATE(CalendarYear,12,1),(WeekStart=\"الإثنين\")+1)+1","v":"2018-11-25"},"2018-11-26","2018-11-27","2018-11-28","2018-11-29","2018-11-30","2018-12-01"]
[null,null,{"$f":"IF(DAY(CalendarDay)=1,CONCATENATE(\"أسبوع \",WEEKNUM(CalendarDay),\"/يوم \",CalendarDay-DATE(YEAR(CalendarDay),1,0)),CONCATENATE(\"يوم \",CalendarDay-DATE(YEAR(CalendarDay),1,0)))","v":"يوم 329"},"يوم 330","يوم 331","يوم 332","يوم 333","يوم 334","أسبوع 48/يوم 335"]
[]
[null,null,{"$f":"DaysAndWeeks+DATE(CalendarYear,12,1)-WEEKDAY(DATE(CalendarYear,12,1),(WeekStart=\"الإثنين\")+1)+8","v":"2018-12-02"},"2018-12-03","2018-12-04","2018-12-05","2018-12-06","2018-12-07","2018-12-08"]
[null,null,{"$f":"IF(WEEKDAY(CalendarDay)=WeekStartValue,CONCATENATE(\"أسبوع \",WEEKNUM(CalendarDay),\"/يوم \",CalendarDay-DATE(YEAR(CalendarDay),1,0)),CONCATENATE(\"يوم \",CalendarDay-DATE(YEAR(CalendarDay),1,0)))","v":"أسبوع 49/يوم 336"},{"$f":"IF(WEEKDAY(CalendarDay)=WeekStartValue,CONCATENATE(\"أسبوع \",WEEKNUM(CalendarDay),\"/يوم \",CalendarDay-DATE(YEAR(CalendarDay),1,0)),CONCATENATE(\"يوم \",CalendarDay-DATE(YEAR(CalendarDay),1,0)))","v":"يوم 337"},{"$f":"IF(WEEKDAY(CalendarDay)=WeekStartValue,CONCATENATE(\"أسبوع \",WEEKNUM(CalendarDay),\"/يوم \",CalendarDay-DATE(YEAR(CalendarDay),1,0)),CONCATENATE(\"يوم \",CalendarDay-DATE(YEAR(CalendarDay),1,0)))","v":"يوم 338"},{"$f":"IF(WEEKDAY(CalendarDay)=WeekStartValue,CONCATENATE(\"أسبوع \",WEEKNUM(CalendarDay),\"/يوم \",CalendarDay-DATE(YEAR(CalendarDay),1,0)),CONCATENATE(\"يوم \",CalendarDay-DATE(YEAR(CalendarDay),1,0)))","v":"يوم 339"},{"$f":"IF(WEEKDAY(CalendarDay)=WeekStartValue,CONCATENATE(\"أسبوع \",WEEKNUM(CalendarDay),\"/يوم \",CalendarDay-DATE(YEAR(CalendarDay),1,0)),CONCATENATE(\"يوم \",CalendarDay-DATE(YEAR(CalendarDay),1,0)))","v":"يوم 340"},{"$f":"IF(WEEKDAY(CalendarDay)=WeekStartValue,CONCATENATE(\"أسبوع \",WEEKNUM(CalendarDay),\"/يوم \",CalendarDay-DATE(YEAR(CalendarDay),1,0)),CONCATENATE(\"يوم \",CalendarDay-DATE(YEAR(CalendarDay),1,0)))","v":"يوم 341"},{"$f":"IF(WEEKDAY(CalendarDay)=WeekStartValue,CONCATENATE(\"أسبوع \",WEEKNUM(CalendarDay),\"/يوم \",CalendarDay-DATE(YEAR(CalendarDay),1,0)),CONCATENATE(\"يوم \",CalendarDay-DATE(YEAR(CalendarDay),1,0)))","v":"يوم 342"}]
[]
[null,null,{"$f":"DaysAndWeeks+DATE(CalendarYear,12,1)-WEEKDAY(DATE(CalendarYear,12,1),(WeekStart=\"الإثنين\")+1)+15","v":"2018-12-09"},"2018-12-10","2018-12-11","2018-12-12","2018-12-13","2018-12-14","2018-12-15"]
[null,null,{"$f":"IF(WEEKDAY(CalendarDay)=WeekStartValue,CONCATENATE(\"أسبوع \",WEEKNUM(CalendarDay),\"/يوم \",CalendarDay-DATE(YEAR(CalendarDay),1,0)),CONCATENATE(\"يوم \",CalendarDay-DATE(YEAR(CalendarDay),1,0)))","v":"أسبوع 50/يوم 343"},{"$f":"IF(WEEKDAY(CalendarDay)=WeekStartValue,CONCATENATE(\"أسبوع \",WEEKNUM(CalendarDay),\"/يوم \",CalendarDay-DATE(YEAR(CalendarDay),1,0)),CONCATENATE(\"يوم \",CalendarDay-DATE(YEAR(CalendarDay),1,0)))","v":"يوم 344"},{"$f":"IF(WEEKDAY(CalendarDay)=WeekStartValue,CONCATENATE(\"أسبوع \",WEEKNUM(CalendarDay),\"/يوم \",CalendarDay-DATE(YEAR(CalendarDay),1,0)),CONCATENATE(\"يوم \",CalendarDay-DATE(YEAR(CalendarDay),1,0)))","v":"يوم 345"},{"$f":"IF(WEEKDAY(CalendarDay)=WeekStartValue,CONCATENATE(\"أسبوع \",WEEKNUM(CalendarDay),\"/يوم \",CalendarDay-DATE(YEAR(CalendarDay),1,0)),CONCATENATE(\"يوم \",CalendarDay-DATE(YEAR(CalendarDay),1,0)))","v":"يوم 346"},{"$f":"IF(WEEKDAY(CalendarDay)=WeekStartValue,CONCATENATE(\"أسبوع \",WEEKNUM(CalendarDay),\"/يوم \",CalendarDay-DATE(YEAR(CalendarDay),1,0)),CONCATENATE(\"يوم \",CalendarDay-DATE(YEAR(CalendarDay),1,0)))","v":"يوم 347"},{"$f":"IF(WEEKDAY(CalendarDay)=WeekStartValue,CONCATENATE(\"أسبوع \",WEEKNUM(CalendarDay),\"/يوم \",CalendarDay-DATE(YEAR(CalendarDay),1,0)),CONCATENATE(\"يوم \",CalendarDay-DATE(YEAR(CalendarDay),1,0)))","v":"يوم 348"},{"$f":"IF(WEEKDAY(CalendarDay)=WeekStartValue,CONCATENATE(\"أسبوع \",WEEKNUM(CalendarDay),\"/يوم \",CalendarDay-DATE(YEAR(CalendarDay),1,0)),CONCATENATE(\"يوم \",CalendarDay-DATE(YEAR(CalendarDay),1,0)))","v":"يوم 349"}]
[]
[null,null,{"$f":"DaysAndWeeks+DATE(CalendarYear,12,1)-WEEKDAY(DATE(CalendarYear,12,1),(WeekStart=\"الإثنين\")+1)+22","v":"2018-12-16"},"2018-12-17","2018-12-18","2018-12-19","2018-12-20","2018-12-21","2018-12-22"]
[null,null,{"$f":"IF(WEEKDAY(CalendarDay)=WeekStartValue,CONCATENATE(\"أسبوع \",WEEKNUM(CalendarDay),\"/يوم \",CalendarDay-DATE(YEAR(CalendarDay),1,0)),CONCATENATE(\"يوم \",CalendarDay-DATE(YEAR(CalendarDay),1,0)))","v":"أسبوع 51/يوم 350"},{"$f":"IF(WEEKDAY(CalendarDay)=WeekStartValue,CONCATENATE(\"أسبوع \",WEEKNUM(CalendarDay),\"/يوم \",CalendarDay-DATE(YEAR(CalendarDay),1,0)),CONCATENATE(\"يوم \",CalendarDay-DATE(YEAR(CalendarDay),1,0)))","v":"يوم 351"},{"$f":"IF(WEEKDAY(CalendarDay)=WeekStartValue,CONCATENATE(\"أسبوع \",WEEKNUM(CalendarDay),\"/يوم \",CalendarDay-DATE(YEAR(CalendarDay),1,0)),CONCATENATE(\"يوم \",CalendarDay-DATE(YEAR(CalendarDay),1,0)))","v":"يوم 352"},{"$f":"IF(WEEKDAY(CalendarDay)=WeekStartValue,CONCATENATE(\"أسبوع \",WEEKNUM(CalendarDay),\"/يوم \",CalendarDay-DATE(YEAR(CalendarDay),1,0)),CONCATENATE(\"يوم \",CalendarDay-DATE(YEAR(CalendarDay),1,0)))","v":"يوم 353"},{"$f":"IF(WEEKDAY(CalendarDay)=WeekStartValue,CONCATENATE(\"أسبوع \",WEEKNUM(CalendarDay),\"/يوم \",CalendarDay-DATE(YEAR(CalendarDay),1,0)),CONCATENATE(\"يوم \",CalendarDay-DATE(YEAR(CalendarDay),1,0)))","v":"يوم 354"},{"$f":"IF(WEEKDAY(CalendarDay)=WeekStartValue,CONCATENATE(\"أسبوع \",WEEKNUM(CalendarDay),\"/يوم \",CalendarDay-DATE(YEAR(CalendarDay),1,0)),CONCATENATE(\"يوم \",CalendarDay-DATE(YEAR(CalendarDay),1,0)))","v":"يوم 355"},{"$f":"IF(WEEKDAY(CalendarDay)=WeekStartValue,CONCATENATE(\"أسبوع \",WEEKNUM(CalendarDay),\"/يوم \",CalendarDay-DATE(YEAR(CalendarDay),1,0)),CONCATENATE(\"يوم \",CalendarDay-DATE(YEAR(CalendarDay),1,0)))","v":"يوم 356"}]
[]
[null,null,{"$f":"DaysAndWeeks+DATE(CalendarYear,12,1)-WEEKDAY(DATE(CalendarYear,12,1),(WeekStart=\"الإثنين\")+1)+29","v":"2018-12-23"},"2018-12-24","2018-12-25","2018-12-26","2018-12-27","2018-12-28","2018-12-29"]
[null,null,{"$f":"IF(WEEKDAY(CalendarDay)=WeekStartValue,CONCATENATE(\"أسبوع \",WEEKNUM(CalendarDay),\"/يوم \",CalendarDay-DATE(YEAR(CalendarDay),1,0)),CONCATENATE(\"يوم \",CalendarDay-DATE(YEAR(CalendarDay),1,0)))","v":"أسبوع 52/يوم 357"},{"$f":"IF(WEEKDAY(CalendarDay)=WeekStartValue,CONCATENATE(\"أسبوع \",WEEKNUM(CalendarDay),\"/يوم \",CalendarDay-DATE(YEAR(CalendarDay),1,0)),CONCATENATE(\"يوم \",CalendarDay-DATE(YEAR(CalendarDay),1,0)))","v":"يوم 358"},{"$f":"IF(WEEKDAY(CalendarDay)=WeekStartValue,CONCATENATE(\"أسبوع \",WEEKNUM(CalendarDay),\"/يوم \",CalendarDay-DATE(YEAR(CalendarDay),1,0)),CONCATENATE(\"يوم \",CalendarDay-DATE(YEAR(CalendarDay),1,0)))","v":"يوم 359"},{"$f":"IF(WEEKDAY(CalendarDay)=WeekStartValue,CONCATENATE(\"أسبوع \",WEEKNUM(CalendarDay),\"/يوم \",CalendarDay-DATE(YEAR(CalendarDay),1,0)),CONCATENATE(\"يوم \",CalendarDay-DATE(YEAR(CalendarDay),1,0)))","v":"يوم 360"},{"$f":"IF(WEEKDAY(CalendarDay)=WeekStartValue,CONCATENATE(\"أسبوع \",WEEKNUM(CalendarDay),\"/يوم \",CalendarDay-DATE(YEAR(CalendarDay),1,0)),CONCATENATE(\"يوم \",CalendarDay-DATE(YEAR(CalendarDay),1,0)))","v":"يوم 361"},{"$f":"IF(WEEKDAY(CalendarDay)=WeekStartValue,CONCATENATE(\"أسبوع \",WEEKNUM(CalendarDay),\"/يوم \",CalendarDay-DATE(YEAR(CalendarDay),1,0)),CONCATENATE(\"يوم \",CalendarDay-DATE(YEAR(CalendarDay),1,0)))","v":"يوم 362"},{"$f":"IF(WEEKDAY(CalendarDay)=WeekStartValue,CONCATENATE(\"أسبوع \",WEEKNUM(CalendarDay),\"/يوم \",CalendarDay-DATE(YEAR(CalendarDay),1,0)),CONCATENATE(\"يوم \",CalendarDay-DATE(YEAR(CalendarDay),1,0)))","v":"يوم 363"}]
[{"$nulls":4},"الملاحظات"]
[]
[null,null,{"$f":"DaysAndWeeks+DATE(CalendarYear,12,1)-WEEKDAY(DATE(CalendarYear,12,1),(WeekStart=\"الإثنين\")+1)+36","v":"2018-12-30"},"2018-12-31"]
[null,null,{"$f":"IF(WEEKDAY(CalendarDay)=WeekStartValue,CONCATENATE(\"أسبوع \",WEEKNUM(CalendarDay),\"/يوم \",CalendarDay-DATE(YEAR(CalendarDay),1,0)),CONCATENATE(\"يوم \",CalendarDay-DATE(YEAR(CalendarDay),1,0)))","v":"أسبوع 53/يوم 364"},{"$f":"IF(WEEKDAY(CalendarDay)=WeekStartValue,CONCATENATE(\"أسبوع \",WEEKNUM(CalendarDay),\"/يوم \",CalendarDay-DATE(YEAR(CalendarDay),1,0)),CONCATENATE(\"يوم \",CalendarDay-DATE(YEAR(CalendarDay),1,0)))","v":"يوم 365"}]